{"text_format":"3","workbook":"xlsx","n_sheets":4,"sheets":["TablaS1_#Spp_IUCNcat_ANPgob","TablaS2_#Spp_NOM059cat_ANPgob","TablaS3_#Spp_IUCNcat_ANPPriv","TablaS4_#Spp_NOM059cat_ANPPriv"],"read":"whole","date_system":"1900"}

{"sheet":"TablaS1_#Spp_IUCNcat_ANPgob","index":0,"n_rows":569,"n_cols":8,"rows_kept":569,"merged":[[0,0,0,7],[1,0,2,0],[1,1,1,6],[1,7,2,7]]}
["Número de especies por cateogría de riesgo en cada Área Natural Protegida gubernamental"]
["Área Natural Protegida Gubernamental (gob)","Categoría de riesgo ",{"$nulls":5},"Total de especies por ANP "]
[null,"CR","DD","EN","LC","NT","VU"]
["Huiricuta y la Ruta Histrica Cultural del Pueblo Huichol - Ruta Huichola (sobreposicin)",0,0,0,9,0,0,{"$f":"B4+C4+D4+E4+F4+G4","v":9}]
["Mario Molina Pasquel - Pinal del Zamorano (sobreposicin)",0,0,0,9,0,1,10]
["San Miguel Ajusco - Zempoala-La Bufa Otom-Mexicana (sobreposicin)",0,1,1,13,1,2,18]
["San Miguel Topilejo - Zempoala-La Bufa-Otom Mexicana (sobreposicin)",0,0,2,13,1,2,18]
["Sierra de Guadalupe - La Armella (sobreposicin)",0,0,0,11,0,1,12]
["Sierra de Guadalupe DF - Sierra de Guadalupe Edo. Mex. (sobreposicin)",0,0,0,11,0,1,12]
["ANP EstatalCerro Zapotecas",0,0,0,9,0,0,9]
["ANP de interes estatalTiacaque",1,0,0,10,0,1,12]
["ANP de valor escenico, historico y culturalSan Juan Bautista Tabi y Anexa Zac Nicte",0,0,0,9,0,0,9]
["ANP sujeta a Conservacion AmbientalBarranca Ro La Pastora, R. La Loma y R. San Joaqun",0,0,0,12,0,2,14]
["ANP sujeta a Conservacion AmbientalBarrancas Huizachal, Arroyo Santa Cruz y A. Plan de Zanja",1,0,0,12,0,1,14]
["ANPRo Filo-Bobos y su Entorno",0,0,0,15,3,0,18]
["APFyF(Corredor Biologico Chichinautzin)",0,1,3,15,1,2,22]
["APFyFBalaan Kaax",0,0,0,14,0,0,14]
["APFyFBoqueron de Tonala",0,0,0,7,0,0,7]
["APFyFCabo San Lucas",0,0,0,3,0,0,3]
["APFyFCampo Verde",0,0,0,12,1,2,15]
["APFyFCaon de Santa Elena",0,0,0,16,0,0,16]
["APFyFCaon del Usumacinta",0,1,0,18,1,2,22]
["APFyFCascada de Agua Azul",0,1,0,15,3,1,20]
["APFyFChan-Kin",0,0,0,15,1,0,16]
["APFyFCienegas de Lerma",0,0,1,15,0,1,17]
["APFyFCuatrocienegas",0,0,0,9,0,0,9]
["APFyFEl Jabali",0,2,0,18,0,2,22]
["APFyFIslas del Golfo de California",0,0,1,21,0,0,22]
["APFyFLa Primavera",0,2,2,12,1,2,19]
["APFyFLaguna Madre y Delta del Rio Bravo",0,0,1,23,0,0,24]
["APFyFLaguna de Terminos",0,0,0,19,0,0,19]
["APFyFMaderas del Carmen",0,0,0,16,0,0,16]
["APFyFManglares de Nichupte",0,0,0,14,1,0,15]
["APFyFMarismas Nacionales",0,0,0,20,0,0,20]
["APFyFMedanos de Samalayuca",0,0,0,12,0,0,12]
["APFyFMeseta de Cacaxtla",0,0,0,17,0,0,17]
["APFyFMetzabok",0,1,0,16,2,1,20]
["APFyFNaha",0,1,0,16,2,1,20]
["APFyFOcampo",0,0,0,16,0,0,16]
["APFyFOtoch Ma_Ax Yetel Kooh",0,0,0,15,1,0,16]
["APFyFPapigochic",0,0,0,8,1,1,10]
["APFyFSierra La Mojonera",0,0,0,8,0,0,8]
["APFyFSierra de Alamos - Rio Cuchujaqui",0,0,0,17,1,1,19]
["APFyFSierra de Alvarez",0,0,0,11,0,0,11]
["APFyFSierra de Quila",0,2,0,14,1,2,19]
["APFyFTutuaca",0,0,0,11,1,3,15]
["APFyFUaymil",0,0,0,13,0,0,13]
["APFyFValle de los Cirios",0,0,1,5,1,0,7]
["APFyFYum Balam",0,0,0,14,1,0,15]
["APRMLa Sepultura",2,0,2,23,0,7,34]
["APRMTerrenos de los Municipios de La Concordia, Angel Albino Corzo, Villaflores, Jiquipilas",0,1,1,17,0,6,25]
["APRNCuenca Hidrografica del Rio Necaxa",1,1,2,18,3,3,28]
["APRNCuencas de los Rios Valle de Bravo, Malacatepec, Tilostoc",0,0,1,17,0,1,19]
["APRNLas Huertas",0,2,0,18,0,1,21]
["Area Ecologica Protegida Reserva de la BiosferaEl Cielo",0,0,2,16,0,3,21]
["Area Estatal de Proteccion HidrologicaSierra del guila",0,2,0,15,1,2,20]
["Area Natural ProtegidaParque Pblico Cerro del Obispado",0,0,0,10,0,1,11]
["Area Protegida EcologicaColonia Parras de la Fuente",0,0,1,10,0,0,11]
["Area Verde Reserva para la Educacion EcologicaSan Juan del Monte",2,0,2,13,2,4,23]
["Area Verde Reserva para la Recreaccion y Educ EcolCerro Macuiltepetl",1,0,0,10,3,3,17]
["Area Verde Reserva para la Recreaccion y Educ EcolPredio Barragn",0,0,0,10,3,3,16]
["Area comunitaria de conservacion ecologicaMilpa Alta",1,0,2,13,1,1,18]
["Area de Conservacin Ecologica(Cerro La Galaxia)",1,0,0,10,3,3,17]
["Area de ConservacionCerro Colorado",0,0,0,11,0,1,12]
["Area de ConservacionMonte Alto",0,0,0,13,0,1,14]
["Area de Proteccion de Recursos NaturalesQuebrada de Santa Brbara",0,0,0,7,1,0,8]
["Area de Restauracion EcologicaCerro del Cubilete",0,0,0,9,0,1,10]
["Area de Restauracion EcologicaCuenca de la Soledad",0,0,0,7,0,1,8]
["Area de Restauracion EcologicaPresa Neutla y su Zona de Influencia",0,0,0,7,0,1,8]
["Area de Uso SustentableCerro de Arandas",0,0,0,8,0,1,9]
["Area de Uso SustentableCerro de los Amoles",0,0,0,10,1,2,13]
["Area de Uso SustentableCerros El Culiacn y La Gavia",0,0,0,9,1,2,12]
["Area de Uso SustentableCuenca Alta del Ro Temascato",0,0,0,8,0,1,9]
["Area de Uso SustentableLas Musas",0,0,0,9,0,1,10]
["Area de Uso SustentablePea Alta",0,0,0,8,0,1,9]
["Area de Uso SustentablePresa La Pursima y su Zona de Influencia",0,0,0,9,0,1,10]
["Area de Uso SustentableSierra de Lobos",0,0,1,8,0,1,10]
["Area de Uso SustentableSierra de los Agustinos",0,0,0,9,1,2,12]
["Areas Naturales TipicasChanal",0,0,0,5,2,0,7]
["Areas Naturales TipicasLa Concordia Zaragoza",1,0,0,7,0,2,10]
["Centro Ecologico Recreativo y Zona de AmortiguamiEl Zapotal",0,1,0,11,0,1,13]
["Destinado a Reserva EcologicaTatocapan",0,0,1,20,1,1,23]
["Jardn de Regeneracin y Recuperacin de EspeciesLaguna Ik",0,0,0,14,0,0,14]
["MNBonampak",0,1,0,13,1,0,15]
["MNCerro de la Silla",0,0,0,12,0,0,12]
["MNRio Bravo del Norte",0,0,0,17,0,0,17]
["MNYagul",0,0,2,7,1,0,10]
["MNYaxchilan",0,0,0,16,1,0,17]
["Manejo de Formaciones Naturales de Inters MunicipalPiedras Bola",0,2,0,12,0,2,16]
["Mejoramiento y conservacion del ambiente y estableMolino de San Roque",1,0,0,9,3,3,16]
["Monumento NaturalBernal de Horcasitas o Cerro de Bernal",0,0,1,12,0,0,13]
["Monumento NaturalCerro del Muerto",0,0,0,12,1,1,14]
["Monumento NaturalEl Stano de Las Golondrinas",0,0,0,12,1,0,13]
["Monumento NaturalGruta del Cerro Cocon",0,0,0,19,0,1,20]
["Monumento NaturalLa Hoya de las Huahuas",0,0,0,13,1,2,16]
["Monumento NaturalLa Region Volcanica Siete Luminarias",0,0,0,8,1,2,11]
["PNArrecife de Puerto Morelos",0,0,0,14,1,0,15]
["PNArrecifes de Cozumel",0,0,0,5,0,0,5]
["PNArrefice de Xcalak",0,0,0,13,0,0,13]
["PNBahia de Loreto",0,0,0,3,0,0,3]
["PNBarranca de Cupatitzio",0,1,0,13,0,3,17]
["PNBenito Juarez",0,0,2,8,1,0,11]
["PNBosencheve",0,0,1,14,0,1,16]
["PNCabo Pulmo",0,0,0,3,0,0,3]
["PNCaon del Rio Blanco",2,0,8,21,3,4,38]
["PNCaon del Sumidero",1,1,0,14,1,3,20]
["PNCascada de Bassaseachic",0,0,0,5,1,3,9]
["PNCerro de Garnica",0,0,1,16,0,2,19]
["PNCerro de la Estrella",0,0,0,11,0,1,12]
["PNCerro de las Campanas",0,0,0,7,0,1,8]
["PNCofre de Perote o Nauhcampatepetl",1,0,3,13,3,5,25]
["PNConstitucion de 1857",0,0,1,5,0,1,7]
["PNCosta Occ. de I Mujeres, Pta Cancun y Pta Nizuc",0,0,0,14,1,0,15]
["PNCumbres de Majalca",0,0,0,10,0,0,10]
["PNCumbres de Monterrey",0,0,0,17,2,1,20]
["PNCumbres del Ajusco",0,1,1,11,1,2,16]
["PNDesierto de los Leones",0,1,2,12,0,2,17]
["PNDesierto del Carmen o de Nixcongo",0,0,0,12,0,1,13]
["PNDzibilchantun",0,0,0,10,0,0,10]
["PNEl Chico",0,0,2,11,1,0,14]
["PNEl Cimatario",0,0,0,8,0,2,10]
["PNEl Historico Coyoacan",0,0,0,11,0,2,13]
["PNEl Potosi",0,0,0,10,0,0,10]
["PNEl Sabinal",0,0,0,9,0,0,9]
["PNEl Tepeyac",0,0,0,11,0,1,12]
["PNEl Tepozteco",0,1,3,13,1,2,20]
["PNEl Veladero",0,0,1,15,0,0,16]
["PNFuentes Brotantes de Tlalpan",0,0,1,11,0,2,14]
["PNGeneral Juan Alvarez",0,1,0,6,0,0,7]
["PNGogorron",0,0,0,10,0,1,11]
["PNGrutas de Cacahuamilpa",0,0,0,10,0,0,10]
["PNHuatulco",0,0,0,13,0,0,13]
["PNInsurg. Jose Maria Morelos",0,0,1,15,0,2,18]
["PNInsurgente Miguel Hidalgo y Costilla",0,1,2,12,0,2,17]
["PNIslas del Golfo de California",0,0,0,1,0,0,1]
["PNIztaccihuatl - Popocatepetl",1,0,1,13,1,2,18]
["PNLago de Camecuaro",0,0,0,9,1,3,13]
["PNLagunas de Chacahua",0,0,0,12,0,0,12]
["PNLagunas de Montebello",0,0,0,7,0,2,9]
["PNLagunas de Zempoala",0,0,3,12,1,2,18]
["PNLomas de Padierna",0,0,0,11,0,2,13]
["PNLos Marmoles",0,0,1,12,1,1,15]
["PNLos Novillos",0,0,0,11,0,0,11]
["PNLos Remedios",0,0,0,12,0,1,13]
["PNMalinche o Matlalcueyatl",0,0,0,11,0,2,13]
["PNMolino de Flores Netzahualcoyotl",0,0,0,10,0,1,11]
["PNNevado de Toluca",1,1,0,18,0,1,21]
["PNPalenque",0,0,0,17,2,1,20]
["PNPico de Orizaba",0,0,1,16,1,1,19]
["PNPico de Tancitaro",0,1,1,14,0,3,19]
["PNRayon",0,0,0,10,1,1,12]
["PNSacromonte",0,0,1,9,0,2,12]
["PNSierra de Organos",0,0,0,10,0,0,10]
["PNSierra de San Pedro Martir",0,0,1,7,1,1,10]
["PNSistema Arrecifal Veracruzano",0,1,0,14,0,0,15]
["PNTula",0,0,0,10,0,1,11]
["PNTulum",0,0,0,13,1,0,14]
["PNVolcan Nevado de Colima",0,2,0,18,0,3,23]
["PNXicotencatl",0,0,0,10,0,0,10]
["PNZona Marina del Archipielago de Espiritu Santo",0,0,0,1,0,0,1]
["Paisaje protegidoPena de Bernal",0,0,0,10,2,1,13]
["Parque Ecologico EstatalParque Laguna de Bacalar",0,0,0,14,0,0,14]
["Parque Ecologico RecreativoTenancingo - Malinalco - Zumpahuacan",0,1,1,13,0,1,16]
["Parque Ecologico Turistico RecreativoZempoala - La Bufa Otom-Mexica",0,1,3,15,1,2,22]
["Parque Ecologico Zoo Recreativo y TuristicoTollocan - Calimaya",0,1,0,14,0,1,16]
["Parque EcologicoLago Crter La Joya",0,0,0,9,1,2,12]
["Parque EcologicoLas Fuentes",0,0,0,8,0,1,9]
["Parque EcologicoMegaparque",0,0,0,8,0,1,9]
["Parque EcologicoParque Ecolgico El Tecun",0,1,0,5,1,0,7]
["Parque EcologicoParque Metropolitano",0,0,0,8,0,1,9]
["Parque Estatal Ecologico, Turistico y RecreativoHermenegildo Galeana",0,1,0,13,0,1,15]
["Parque Estatal Ecologico, Turistico y RecreativoIsla de las Aves",0,0,0,10,0,1,11]
["Parque Estatal Ecologico, Turistico y RecreativoSan Jos Chalco",0,0,0,10,0,1,11]
["Parque Estatal Ecologico, Turistico y RecreativoSierra Hermosa",0,0,0,10,0,1,11]
["Parque EstatalAgua Blanca",0,0,0,17,0,2,19]
["Parque EstatalAlameda Poniente San Jos de la Pila",0,0,0,15,0,1,16]
["Parque EstatalBicentenario",0,0,0,14,0,0,14]
["Parque EstatalBosque El Hiloche",0,0,2,11,1,0,14]
["Parque EstatalBosque Mesfilo Nevado de Colima",0,2,0,18,0,3,23]
["Parque EstatalCan de Fernndez",0,0,0,10,0,0,10]
["Parque EstatalCentro Ceremonial Mazahua",0,0,1,11,0,1,13]
["Parque EstatalCerro Cualtenco",0,0,0,13,0,1,14]
["Parque EstatalCerro El Faro",0,0,1,10,1,2,14]
["Parque EstatalCerro Gordo",0,0,0,11,0,1,12]
["Parque EstatalCerro Los Monos",0,0,1,10,1,2,14]
["Parque EstatalCerro Punhuato",0,0,1,13,1,2,17]
["Parque EstatalCerro del Fortn",0,0,1,7,2,0,10]
["Parque EstatalChapa de Mota",0,0,0,10,0,1,11]
["Parque EstatalCubitos",0,0,0,10,1,1,12]
["Parque EstatalEl Bosque Adolfo Roque Bautista",0,0,1,8,0,0,9]
["Parque EstatalEl Oso Bueno",0,0,0,10,0,1,11]
["Parque EstatalGrutas de la Estrella",0,0,0,11,0,0,11]
["Parque EstatalHierve El Agua",0,0,1,8,0,0,9]
["Parque EstatalIng. Gerardo Cruickshank Garca",0,0,0,11,0,1,12]
["Parque EstatalKabah",0,0,0,9,0,0,9]
["Parque EstatalLa Primavera",0,2,0,7,0,1,10]
["Parque EstatalLa Quemada",0,0,0,8,0,0,8]
["Parque EstatalLagunas de Yalahau",0,0,0,9,0,0,9]
["Parque EstatalLic. Isidro Fabela",0,0,0,10,0,1,11]
["Parque EstatalManantial de la Media Luna",0,0,0,10,0,0,10]
["Parque EstatalMetropolitano de Naucalpan",0,0,0,11,0,1,12]
["Parque EstatalPalma Larga",0,0,0,10,0,0,10]
["Parque EstatalParque Ecolgico Regional del Itsmo",0,0,0,16,0,0,16]
["Parque EstatalParque Estado de Mxico - Naucalli",0,0,0,11,0,1,12]
["Parque EstatalRuta Huichola",0,0,0,11,0,0,11]
["Parque EstatalSantuario del Agua Laguna de Zumpango",0,0,0,10,0,1,11]
["Parque EstatalSantuario del Agua Lagunas de Xico",0,0,1,10,0,1,12]
["Parque EstatalSantuario del Agua Manantiales de Tiacaque",1,0,0,10,0,1,12]
["Parque EstatalSantuario del Agua Presa Brockman y Victoria",0,0,1,10,1,1,13]
["Parque EstatalSantuario del Agua Presa Corral de Piedra",0,0,0,14,0,1,15]
["Parque EstatalSantuario del Agua Presa ado",0,0,0,10,0,1,11]
["Parque EstatalSantuario del Agua Sistema Hidrolgico Presa Huapango",0,0,0,10,0,1,11]
["Parque EstatalSantuario del Agua Valle de Bravo",0,0,0,13,0,1,14]
["Parque EstatalSantuario del Agua y Forestal Manantial El Salto de Atlautla - Ecatzingo",0,0,0,11,1,2,14]
["Parque EstatalSantuario del Agua y Forestal Manantiales Cascada Diamantes",1,0,1,10,1,2,15]
["Parque EstatalSantuario del Agua y Forestal Presa Guadalupe",0,0,0,11,0,1,12]
["Parque EstatalSantuario del Agua y Forestal Presa Taxhimay",0,0,0,10,0,1,11]
["Parque EstatalSantuario del Agua y Forestal Presa Villa Victoria",0,0,3,14,0,1,18]
["Parque EstatalSantuario del Agua y Forestal Subcuenca Tributaria Arroyo Sila",1,0,0,10,0,1,12]
["Parque EstatalSantuario del Agua y Forestal Subcuenca Tributaria Presa Antonio Alzate",0,0,1,11,0,1,13]
["Parque EstatalSantuario del Agua y Forestal Subcuenca Tributaria Ro Mayorazgo-Temoaya",0,0,0,11,0,1,12]
["Parque EstatalSantuario del Agua y Forestal Subcuenca Tributaria Ro San Lorenzo",0,0,1,14,0,2,17]
["Parque EstatalSierra Morelos",0,0,0,14,0,1,15]
["Parque EstatalSierra Patlachique",0,0,0,10,0,1,11]
["Parque EstatalSierra de Guadalupe",0,0,0,11,0,1,12]
["Parque EstatalSierra de Tepozotln",0,0,0,10,0,1,11]
["Parque Municipal y de Reserva PotencialLaguna de Chignahuapan",0,0,1,15,0,1,17]
["Parque MunicipalEl Calvario",0,0,0,13,0,1,14]
["Parque MunicipalLas Sequoias",0,0,0,10,0,1,11]
["Parque MunicipalTlanepantla",0,0,0,11,0,1,12]
["Parque Natural para la Recreacion PopularAtizapan - Valle Escondido",0,0,0,11,0,1,12]
["Parque Natural para la Recreacion PopularEl Ocotal",0,0,0,10,0,1,11]
["Parque Natural para la Recreacion PopularNahuatlaca - Matlazinca",0,1,1,16,1,2,21]
["Parque Natural para la Recreacion PopularSierra de Nanchititla",0,0,1,11,0,0,12]
["Parque NaturalEl Barrancn de las Guacamayas",0,1,0,17,0,0,18]
["Parque NaturalEl Llano",0,0,0,10,0,1,11]
["Parque NaturalLaguna de Chancanaab",0,0,0,5,0,0,5]
["Parque Urbano EcologicoLic. Salvador Bernal Murguia",0,1,0,12,0,3,16]
["Parque Urbano EcologicoParque Francisco Zarco",0,0,1,12,1,2,16]
["Parque Urbano Sujeto a Proteccin EcolgicaTabasco 2000",0,0,0,18,0,0,18]
["Parque UrbanoAdolfo Ruz Cortinez",0,0,0,5,0,0,5]
["Parque UrbanoAndrs Quintana Roo",0,0,0,10,0,1,11]
["Parque UrbanoAnexo Villa de Guadalupe",0,1,0,9,0,2,12]
["Parque UrbanoAngel Albino Corzo",0,0,0,8,0,1,9]
["Parque UrbanoArroyo Grande",2,2,1,14,2,1,22]
["Parque UrbanoAztln",0,1,0,9,1,1,12]
["Parque UrbanoBaja California",0,0,0,16,0,2,18]
["Parque UrbanoBenito Jurez",0,0,0,8,0,0,8]
["Parque UrbanoBosque Cuauhtemoc",0,1,0,11,1,2,15]
["Parque UrbanoCalifornia",0,0,0,8,0,1,9]
["Parque UrbanoCarmen Yaxchuch",0,0,0,6,0,0,6]
["Parque UrbanoCerrito de la Independencia",0,0,1,13,0,1,15]
["Parque UrbanoChacamax",0,0,0,17,0,1,18]
["Parque UrbanoColonia Barrio Nuevo",0,0,0,11,0,0,11]
["Parque UrbanoCongregacin El Robln",0,0,0,7,1,0,8]
["Parque UrbanoCristbal Obregn",0,0,0,8,0,1,9]
["Parque UrbanoCuahutemoc",0,0,0,5,0,1,6]
["Parque UrbanoEcolgico de Capcuaro",0,0,0,10,0,3,13]
["Parque UrbanoEcolgico de Taquiscuareo",0,0,0,7,1,2,10]
["Parque UrbanoEcolgico de Uruapan",0,1,0,10,0,3,14]
["Parque UrbanoEcolgico del Fideicomiso de la Cd. Industrial de Morelia",0,0,1,13,1,2,17]
["Parque UrbanoEfran A. Gutirrez",0,0,0,14,0,0,14]
["Parque UrbanoEjido San Juan de Guadalupe",0,0,0,10,0,0,10]
["Parque UrbanoEl Aguajito",0,0,0,6,0,0,6]
["Parque UrbanoEl Bajio",0,0,0,6,0,0,6]
["Parque UrbanoEl Bosque",0,0,0,8,0,2,10]
["Parque UrbanoEl Potrero",0,0,0,6,0,0,6]
["Parque UrbanoFrancisco Romo Serrano",0,0,0,7,1,0,8]
["Parque UrbanoIgnacio Zaragoza",0,0,0,6,0,0,6]
["Parque UrbanoInstituto Tec. Agropecuario No 7",0,0,0,11,1,2,14]
["Parque UrbanoJos Castillo Tielemans",0,0,0,12,1,0,13]
["Parque UrbanoKabah",0,0,0,14,1,0,15]
["Parque UrbanoLa Competencia",1,1,0,15,0,0,17]
["Parque UrbanoLa Eucalera de Paso de Hidalgo",0,0,0,10,1,2,13]
["Parque UrbanoLa Pimienta",0,0,0,14,0,1,15]
["Parque UrbanoLa Sombra Carrizal",1,1,0,15,0,2,19]
["Parque UrbanoLa Ventana",1,1,0,14,2,1,19]
["Parque UrbanoLaguna La Escondida",0,0,1,16,0,0,17]
["Parque UrbanoLiberacin",0,0,0,18,0,3,21]
["Parque UrbanoLoma Bonita",0,0,0,5,0,1,6]
["Parque UrbanoLos Amates",0,0,0,5,0,2,7]
["Parque UrbanoLos ngeles",0,0,0,6,0,1,7]
["Parque UrbanoLuis Espinosa",1,1,0,12,2,1,17]
["Parque UrbanoLzaro Crdenas",0,1,0,17,1,1,20]
["Parque UrbanoMVZ Benigno Hernndez Hidalgo",1,0,1,14,1,2,19]
["Parque UrbanoManuel vila Camacho",0,0,0,5,0,1,6]
["Parque UrbanoMarte R. Gmez",0,0,0,13,0,1,14]
["Parque UrbanoMirador",0,0,0,6,0,1,7]
["Parque UrbanoNacatili",0,1,0,9,0,1,11]
["Parque UrbanoNueva Palestina",0,0,0,11,0,1,12]
["Parque UrbanoPalenque Los Pinos",0,0,0,6,0,0,6]
["Parque UrbanoParaso",0,0,0,8,0,1,9]
["Parque UrbanoParque Jurez",0,1,0,11,1,2,15]
["Parque UrbanoParque Lineal",0,0,0,16,0,1,17]
["Parque UrbanoParque la Primavera",0,1,0,11,0,1,13]
["Parque UrbanoPaseo de la Presa",0,0,0,11,0,0,11]
["Parque UrbanoPonciano Arriaga",0,1,0,9,0,1,11]
["Parque UrbanoProgreso Agrario",0,0,0,9,0,1,10]
["Parque UrbanoRibera Saquiminguez",2,1,2,14,1,1,21]
["Parque UrbanoRoblada Grande",0,0,0,6,0,0,6]
["Parque UrbanoSacajtic",1,1,0,15,0,1,18]
["Parque UrbanoSalto Grande",0,0,0,17,0,0,17]
["Parque UrbanoSan Carlos",0,0,0,11,1,1,13]
["Parque UrbanoSan Francisco (Antes La Frontera)",1,1,0,14,0,1,17]
["Parque UrbanoSan Jernimo Tulija",0,1,0,15,2,1,19]
["Parque UrbanoSan Lucas (Cabecera Municipal)",0,1,0,8,0,1,10]
["Parque UrbanoSan Marcos",0,0,0,5,0,1,6]
["Parque UrbanoSlo Dios",1,1,0,14,2,0,18]
["Parque UrbanoTenochtitln",0,0,0,8,0,1,9]
["Parque UrbanoTierra y Libertad",0,0,0,14,0,0,14]
["Parque UrbanoUnin y Progreso (Chiapa de Corzo)",0,1,0,9,0,1,11]
["Parque UrbanoUnin y Progreso (Villaflores)",0,0,0,7,0,0,7]
["Parque UrbanoUnion Agrarista",0,0,0,12,0,1,13]
["Parque UrbanoVenustiano Carranza",0,0,0,10,0,1,11]
["Parque UrbanoVicente Guerrero",0,0,0,9,0,1,10]
["Parque UrbanoZacatonal de Jurez",1,1,0,15,0,1,18]
["Parque UrbanoZona de Los Ros",2,1,2,14,1,1,21]
["Parque Urbanorsulo Galvn",0,0,0,11,0,3,14]
["Parque de Recreacion PopularJose Mara Velasco",0,0,0,10,0,1,11]
["ParqueFrancisco Javier Clavijero",1,0,0,11,3,3,18]
["RBAlto Golfo de California, Delta del Rio Colorado",0,0,0,7,0,0,7]
["RBArrecifes de Sian Kaan",0,0,0,13,1,0,14]
["RBBahia de los Angeles, Canales de Ballenas y de Salsipuedes",0,0,1,2,0,0,3]
["RBBarranca de Metztitlan",0,1,0,17,2,4,24]
["RBCalakmul",0,0,0,19,0,0,19]
["RBChamela-Cuixmala",0,1,1,14,0,1,17]
["RBComplejo Lagunar Ojo de Liebre",0,0,0,1,0,0,1]
["RBEl Pinacate y Gran Desierto de Altar",0,0,0,9,0,0,9]
["RBEl Triunfo",4,0,5,16,1,6,32]
["RBEl Vizcaino",0,0,0,3,0,0,3]
["RBIslas Marias",0,1,0,3,0,0,4]
["RBJanos",0,0,0,18,1,2,21]
["RBLa Encrucijada",0,0,0,17,0,1,18]
["RBLa Michilia",0,0,0,9,0,0,9]
["RBLacan-Tun",0,1,0,15,1,0,17]
["RBLos Petenes",0,0,0,9,0,0,9]
["RBLos Tuxtlas",3,0,4,24,2,3,36]
["RBMapimi",0,0,0,11,0,0,11]
["RBMariposa Monarca",0,0,1,14,1,1,17]
["RBMontes Azules",0,1,0,15,1,2,19]
["RBPantanos de Centla",0,0,0,19,0,1,20]
["RBRia Celestun",0,0,0,10,0,0,10]
["RBRia Lagartos",0,0,0,14,0,0,14]
["RBSelva El Ocote",0,0,0,17,1,2,20]
["RBSian Kaan",0,0,0,15,1,0,16]
["RBSierra Gorda",1,1,2,20,4,5,33]
["RBSierra Gorda de Guanajuato",0,0,0,14,3,3,20]
["RBSierra La Laguna",0,0,0,3,0,0,3]
["RBSierra de Abra Tanchipa",0,0,1,9,0,0,10]
["RBSierra de Huautla",0,0,0,12,0,0,12]
["RBSierra de Manantlan",0,2,1,22,0,2,27]
["RBTehuacan-Cuicatlan",0,0,5,17,3,3,28]
["RBTiburon Ballena",0,0,0,14,0,0,14]
["RBVolcan Tacana",6,0,7,11,0,5,29]
["RBZicuiran - Infiernillo",0,0,0,18,0,1,19]
["Reserva BioticaGertrude Duby",0,0,0,6,0,1,7]
["Reserva ComunitariaSanta Mara de Ocuiln",0,0,1,10,0,1,12]
["Reserva EcolgicaEl Astillero",0,0,0,10,0,1,11]
["Reserva EcolgicaTulancingo",0,0,0,11,0,2,13]
["Reserva Ecologica ComunitariaSan Bernabe de Ocotepec",0,1,1,11,0,2,15]
["Reserva Ecologica ComunitariaSan Miguel Ajusco",0,1,1,13,1,2,18]
["Reserva Ecologica ComunitariaSan Miguel Topilejo",0,0,2,14,1,2,19]
["Reserva Ecologica ComunitariaSan Nicols Totolapan",0,1,1,11,0,2,15]
["Reserva Ecologica EstatalLa Caada",0,0,0,10,1,1,12]
["Reserva Ecologica EstatalLa Sabana",0,0,0,11,1,0,12]
["Reserva EcologicaArroyo Moreno",0,1,0,14,0,0,15]
["Reserva EcologicaCascadas de Reforma",0,0,0,15,0,0,15]
["Reserva EcologicaCerro de las Culebras",0,0,1,12,3,3,19]
["Reserva EcologicaLa Martinica",2,0,0,11,3,3,19]
["Reserva EcologicaLaguna de las Ilusiones",0,0,0,18,0,0,18]
["Reserva EcologicaPacho Nuevo",0,0,0,12,3,3,18]
["Reserva EcologicaPancho Poza",1,0,2,12,3,2,20]
["Reserva EcologicaParque Ecolgico Laguna La Lima",0,0,0,18,0,0,18]
["Reserva EcologicaParque Ecolgico de la Chontalpa",0,0,0,17,0,0,17]
["Reserva EcologicaRo Playa",0,0,0,17,0,0,17]
["Reserva EcologicaSierra de Otontepec",0,0,1,13,0,0,14]
["Reserva EcologicaSierra de Tabasco",0,0,0,19,0,2,21]
["Reserva Estat con carac de Reserva de la BiosferaReal de Guadalczar",0,0,0,10,0,0,10]
["Reserva EstatalCerro Mactumatza",0,1,0,11,0,1,13]
["Reserva EstatalCinagas y Manglares de la Costa Norte de Yucatn",0,0,0,10,0,0,10]
["Reserva EstatalEl Nanchal",0,0,0,15,0,1,16]
["Reserva EstatalEl Pericon",0,0,0,10,0,0,10]
["Reserva EstatalLa Lluvia",0,0,0,6,0,0,6]
["Reserva EstatalLas Estacas",0,0,0,11,0,0,11]
["Reserva EstatalLos Olivos",1,1,0,13,0,2,17]
["Reserva EstatalMario Molina Pasquel",0,0,0,9,0,1,10]
["Reserva EstatalPalos Grandes",0,0,0,10,0,0,10]
["Reserva EstatalSelvas y Humedales de Cozumel",0,0,0,5,0,0,5]
["Reserva EstatalSierra de Montenegro",0,1,0,11,0,0,12]
["Reserva EstatalSierra de Tentzo",0,0,0,12,0,1,13]
["Reserva EstatalSierra del Este y Sierra de Enmedio",0,0,0,7,0,0,7]
["Reserva EstatalSistema Lagunar Chichankanab",0,0,0,11,0,0,11]
["Reserva EstatalSistema Tetzcotzingo",0,0,0,11,1,2,14]
["Reserva EstatalTancojol",0,0,1,11,1,0,13]
["Reserva PatrimonialLagunas Costeras y Serranias Aledaas de la Costa de Michoacan",0,0,0,12,0,0,12]
["Reserva PatrimonialVolcn El Jorullo",0,0,0,11,0,1,12]
["Reserva de ConservacionPinal del Zamorano",0,0,0,9,0,1,10]
["Reserva de ConservacionZona Cuenca de la Esperanza",0,0,0,7,0,1,8]
["Reserva de la Biosfera EstatalSierra de San Juan",0,3,0,21,0,0,24]
["Reserva de la Biosfera EstatalSierra de Vallejo",0,2,1,16,0,1,20]
["Reseva EcologicaTembladeras",0,1,0,14,0,0,15]
["Reseva EcologicaYu - Balcah",0,0,0,18,0,2,20]
["Restauracion EcologicaLaguna de Yuriria y su Zona de Influencia",0,0,0,9,1,2,12]
["SANTIslas La Pajarera, Cocinas, Mamut, Colorada, San Pedro, San Agustin, San Andres y Negrita, y los isoltes Los Anegados, Novillas, Mosca y Submarino (Islas en la Bahia de Chamela)",0,0,0,14,0,0,14]
["SANTPlaya Ceuta",0,0,0,15,0,0,15]
["SANTPlaya El Tecuan",0,0,0,14,0,1,15]
["SANTPlaya Piedra de Tlacoyunque",0,0,0,9,0,0,9]
["SANTPlaya Teopa",0,0,0,14,0,0,14]
["SANTPlaya adyacente a la localidad denominada Rio Lagartos",0,0,0,14,0,0,14]
["SANTPlaya de Cuitzamala",0,0,0,11,0,0,11]
["SANTPlaya de Escobilla",0,0,0,12,0,0,12]
["SANTPlaya de Maruata y Colola",0,0,0,10,0,0,10]
["SANTPlaya de Mismaloya",0,0,0,14,0,0,14]
["SANTPlaya de Puerto Arista",0,0,0,15,0,1,16]
["SANTPlaya de Rancho Nuevo",0,0,1,12,0,0,13]
["SANTPlaya de Tierra Colorada",0,0,0,11,0,0,11]
["SANTPlaya de la Bahia de Chacahua",0,0,0,12,0,0,12]
["SANTPlaya el Verde Camacho",0,0,0,17,0,0,17]
["Sitio Sagrado NaturalHuiricuta y la Ruta Histrica Cultural del Pueblo Huichol",0,0,0,10,0,0,10]
["Sitio Sagrado NaturalLas Cuevas del Viento y la Fertilidad",0,0,0,11,2,2,15]
["Terreno de actividad publicaLas Lajas - Cerro del Lobo",0,0,3,11,1,0,15]
["Transferencia de prediosRegin denominada Cerro Blanco RB en La Michila",0,0,0,10,0,0,10]
["Z de Rest Ecol y Z de Ref de Aves Mar Migr y FFSPlaya Verde Camacho (1)",0,0,0,14,0,0,14]
["Zona Especial Prot Flora y Fauna Silvestre y AcuatLos Petenes",0,0,0,9,0,0,9]
["Zona Especial Sujeta a Conservacion EcologicaAltas Cumbres",0,0,0,13,1,1,15]
["Zona Preserv Ecol de los Centros de PoblacinCerro La Paila - Matas Rodrguez",0,0,0,12,0,0,12]
["Zona Preserv Ecol de los Centros de PoblacinCerro La Paila-El Susto",0,0,0,12,0,0,12]
["Zona Preserv Ecol de los Centros de PoblacionBosque de Tlalpan",0,0,1,11,0,2,14]
["Zona Preserv Ecol de los Centros de PoblacionEl Cedral",0,0,0,10,0,1,11]
["Zona Preserv Ecol de los Centros de PoblacionLa Alberca de Los Espinos",0,0,0,8,1,3,12]
["Zona Preserv Ecol de los Centros de PoblacionLaguna de Zacapu y su Rivera",0,0,0,9,1,3,13]
["Zona Sujeta Conservacin Ecologica-Res Ecol EstataEstero San Jos del Cabo",0,0,0,3,0,0,3]
["Zona Sujeta Conservacion Ecologica y de Valor Esce(Santuario del Loro Huasteco)",0,0,1,11,0,0,12]
["Zona Sujeta Conservacion Ecologica y de Valor EscePunta Canales o Isla del Amor",0,1,0,14,0,0,15]
["Zona Sujeta a Conservacin Ecolgica(Parque Ecolgico de la Ciudad de Mxico)",0,0,1,10,0,2,13]
["Zona Sujeta a Conservacin EcolgicaAcua",0,0,0,10,0,0,10]
["Zona Sujeta a Conservacin EcolgicaAgua Caliente",0,1,0,10,1,2,14]
["Zona Sujeta a Conservacin EcolgicaArivechi Cerro Las Conchas",0,0,0,9,1,2,12]
["Zona Sujeta a Conservacin EcolgicaBalam-Kin",0,0,0,16,0,0,16]
["Zona Sujeta a Conservacin EcolgicaBalam-Ku",0,0,0,19,0,0,19]
["Zona Sujeta a Conservacin EcolgicaBao de San Ignacio",0,0,0,11,0,0,11]
["Zona Sujeta a Conservacin EcolgicaBarranca Mxico 68",0,0,0,11,0,1,12]
["Zona Sujeta a Conservacin EcolgicaBarranca de Tecamachalco",0,0,0,12,0,1,13]
["Zona Sujeta a Conservacin EcolgicaBosques de las Lomas",0,0,0,12,0,1,13]
["Zona Sujeta a Conservacin EcolgicaCan Pino del Campo",0,0,0,10,0,0,10]
["Zona Sujeta a Conservacin EcolgicaCerro El Potos",0,0,0,11,0,0,11]
["Zona Sujeta a Conservacin EcolgicaCerro El Topo",0,0,0,12,0,0,12]
["Zona Sujeta a Conservacin EcolgicaCerro Hueco",0,0,1,11,0,2,14]
["Zona Sujeta a Conservacin EcolgicaCerro La Mota",0,0,0,13,0,0,13]
["Zona Sujeta a Conservacin EcolgicaCerro Meyapac",0,0,0,15,0,0,15]
["Zona Sujeta a Conservacin EcolgicaCerro Peln",0,0,0,11,1,3,15]
["Zona Sujeta a Conservacin EcolgicaCerro del Estribo Grande",0,0,0,10,1,2,13]
["Zona Sujeta a Conservacin EcolgicaCinega del Fuerte",0,0,1,13,0,0,14]
["Zona Sujeta a Conservacin EcolgicaCuxtal",0,0,0,10,0,0,10]
["Zona Sujeta a Conservacin EcolgicaEcoguardas",0,0,1,10,0,2,13]
["Zona Sujeta a Conservacin EcolgicaEjidos de Xochimilco y San Gregorio Atlapulco",0,0,1,11,0,2,14]
["Zona Sujeta a Conservacin EcolgicaEl Cabildo Amatal",0,0,0,13,0,1,14]
["Zona Sujeta a Conservacin EcolgicaEl Gancho Murillo",0,0,0,13,0,1,14]
["Zona Sujeta a Conservacin EcolgicaEl Mineral de Nuestra Seora de la Candelaria",0,0,0,7,1,0,8]
["Zona Sujeta a Conservacin EcolgicaEl Recreo",1,0,0,5,0,0,6]
["Zona Sujeta a Conservacin EcolgicaEl Refugio de Apanaco",0,0,0,10,0,0,10]
["Zona Sujeta a Conservacin EcolgicaEl Tangano",0,0,0,7,0,2,9]
["Zona Sujeta a Conservacin EcolgicaEl Texcal",0,1,0,10,0,0,11]
["Zona Sujeta a Conservacin EcolgicaEspritu Santo",0,0,0,11,0,1,12]
["Zona Sujeta a Conservacin EcolgicaEx-Escuela Central Agrcola de la Huerta",0,0,1,11,1,2,15]
["Zona Sujeta a Conservacin EcolgicaHuitepec - Los Alcanfores",0,0,0,6,0,2,8]
["Zona Sujeta a Conservacin EcolgicaHumedales La Libertad",0,0,0,18,0,0,18]
["Zona Sujeta a Conservacin EcolgicaHumedales de Montaa La Kisst",0,0,0,6,0,2,8]
["Zona Sujeta a Conservacin EcolgicaHumedales de Montaa Mara Eugenia",0,0,0,6,0,1,7]
["Zona Sujeta a Conservacin EcolgicaLa Alberca y su Zona de Influencia",0,0,0,11,0,2,13]
["Zona Sujeta a Conservacin EcolgicaLa Chichihua",0,1,1,14,0,0,16]
["Zona Sujeta a Conservacin EcolgicaLa Cinega",0,0,1,10,0,0,11]
["Zona Sujeta a Conservacin EcolgicaLa Encrucijada",0,0,0,17,0,1,18]
["Zona Sujeta a Conservacin EcolgicaLa Hediondilla",0,0,0,9,0,0,9]
["Zona Sujeta a Conservacin EcolgicaLa Laguna de Chandio",0,0,2,13,0,2,17]
["Zona Sujeta a Conservacin EcolgicaLa Mesa de Tzitzio",0,0,1,13,0,2,16]
["Zona Sujeta a Conservacin EcolgicaLa Pera",0,0,0,14,0,0,14]
["Zona Sujeta a Conservacin EcolgicaLa Pursima",0,0,0,8,0,0,8]
["Zona Sujeta a Conservacin EcolgicaLa Sepultura",2,0,1,23,0,6,32]
["Zona Sujeta a Conservacin EcolgicaLa Trinidad (2000)",0,0,0,10,0,0,10]
["Zona Sujeta a Conservacin EcolgicaLa Trinidad (2002)",0,0,0,10,0,0,10]
["Zona Sujeta a Conservacin EcolgicaLaguna de Manat",0,0,0,14,1,0,15]
["Zona Sujeta a Conservacin EcolgicaLas Flores",0,0,0,10,0,0,10]
["Zona Sujeta a Conservacin EcolgicaLas Tinajas de Huandacareo",0,0,0,9,1,2,12]
["Zona Sujeta a Conservacin EcolgicaLlano de la Soledad",0,0,0,9,0,0,9]
["Zona Sujeta a Conservacin EcolgicaLos Chorros del Varal",0,1,1,10,0,2,14]
["Zona Sujeta a Conservacin EcolgicaLos Sabinos - Santa Rosa - San Cristobal",0,0,0,10,0,0,10]
["Zona Sujeta a Conservacin EcolgicaManantial La Mintzita y su Zona de Amortiguamiento",0,0,0,11,1,2,14]
["Zona Sujeta a Conservacin EcolgicaManantiales de Parcuaro",0,0,0,13,0,2,15]
["Zona Sujeta a Conservacin EcolgicaNavachiste",0,0,0,12,0,0,12]
["Zona Sujeta a Conservacin EcolgicaParque Ecolgico Agua Tibia-Jeroche",0,0,0,9,1,2,12]
["Zona Sujeta a Conservacin EcolgicaParque Ecolgico Laguna del Camarn",0,0,0,18,0,0,18]
["Zona Sujeta a Conservacin EcolgicaPico El Loro-Paxtal",5,0,4,13,1,6,29]
["Zona Sujeta a Conservacin EcolgicaRancho Los Pitzocales o El Carmen",0,0,0,10,0,0,10]
["Zona Sujeta a Conservacin EcolgicaRancho Nuevo",0,0,0,6,0,1,7]
["Zona Sujeta a Conservacin EcolgicaRefugio Estatal de Flora y Fauna Laguna Colombia",0,0,0,5,0,0,5]
["Zona Sujeta a Conservacin EcolgicaRefugio Estatal de Flora y Fauna Sistema Lagunar Chacmochuch",0,0,0,14,1,0,15]
["Zona Sujeta a Conservacin EcolgicaReserva El Palmar",0,0,0,10,0,0,10]
["Zona Sujeta a Conservacin EcolgicaRo Grande San Pedro",0,0,0,11,0,0,11]
["Zona Sujeta a Conservacin EcolgicaSan Elas",0,0,0,10,0,0,10]
["Zona Sujeta a Conservacin EcolgicaSan Juan y Puentes",0,0,0,9,0,0,9]
["Zona Sujeta a Conservacin EcolgicaSanda El Grande",0,0,0,10,1,0,11]
["Zona Sujeta a Conservacin EcolgicaSanta Ana",0,0,0,18,0,2,20]
["Zona Sujeta a Conservacin EcolgicaSanta Marta de Abajo",0,0,0,9,0,0,9]
["Zona Sujeta a Conservacin EcolgicaSantuario de la Tortuga Marina  Xcacel - Xcacelito",0,0,0,13,1,0,14]
["Zona Sujeta a Conservacin EcolgicaSantuario del Manat, Baha de Chetumal",0,0,0,16,0,0,16]
["Zona Sujeta a Conservacin EcolgicaSerrana de Zapalinam",0,0,0,13,0,0,13]
["Zona Sujeta a Conservacin EcolgicaSierra Cerro de la Silla",0,0,0,13,0,0,13]
["Zona Sujeta a Conservacin EcolgicaSierra Corral de los Bandidos",0,0,0,12,0,0,12]
["Zona Sujeta a Conservacin EcolgicaSierra El Fraile y San Miguel",0,0,0,11,0,0,11]
["Zona Sujeta a Conservacin EcolgicaSierra Fra",0,0,0,12,1,2,15]
["Zona Sujeta a Conservacin EcolgicaSierra Las Mitras",0,0,0,12,0,1,13]
["Zona Sujeta a Conservacin EcolgicaSierra Picachos",0,0,0,12,0,0,12]
["Zona Sujeta a Conservacin EcolgicaSierra de Guadalupe",0,0,0,11,0,1,12]
["Zona Sujeta a Conservacin EcolgicaSierra de Huautla",0,0,0,11,0,0,11]
["Zona Sujeta a Conservacin EcolgicaSierra de Santa Catarina I",0,0,0,11,0,1,12]
["Zona Sujeta a Conservacin EcolgicaSistema Lagunar Catazaja",0,0,0,19,0,0,19]
["Zona Sujeta a Conservacin EcolgicaSistema de Presas Abelardo Rodrguez Lujn - El Molinito",0,0,0,10,0,0,10]
["Zona Sujeta a Conservacin EcolgicaTehuacn - Zapotitln",0,0,0,7,0,0,7]
["Zona Sujeta a Conservacin EcolgicaTercera Seccin del Bosque de Chapultepec I (Terrenos Federales y del DF)",0,0,0,12,0,1,13]
["Zona Sujeta a Conservacin EcolgicaTercera Seccin del Bosque de Chapultepec II (Terrenos Expropiados)",0,0,0,12,0,1,13]
["Zona Sujeta a Conservacin EcolgicaTrinidad y Llano Salas",0,0,0,10,0,0,10]
["Zona Sujeta a Conservacin EcolgicaTzama Cum Pumy",1,0,0,14,1,1,17]
["Zona Sujeta a Conservacin EcolgicaVaqueras",0,0,0,10,0,0,10]
["Zona Sujeta a Conservacin EcolgicaVolcn Tacan",3,0,7,11,0,5,26]
["Zona Sujeta a Conservacin EcolgicaZona Occidental de Microcuencas",0,0,0,9,1,2,12]
["Zona Sujeta a Conservacion AmbientalMalpais de Santo Toms de los Pltanos",0,0,0,12,0,1,13]
["Zona Sujeta a Conservacion EcologicaEl Canelar",0,1,0,9,0,0,10]
["Zona Sujeta a Conservacion EcologicaEstero El Soldado",0,0,0,9,0,0,9]
["Zona Sujeta a Reserva EcologicaParque Ecolgico Pblico Diego Muz Camargo",0,0,0,9,0,0,9]
["Zona Sujeta a Reserva EcologicaRancho Teometitla",0,0,0,10,0,0,10]
["Zona de Amortiguamiento de la Reserva EcologicaCentro de Interpretacin de la Naturaleza",0,0,0,18,0,1,19]
["Zona de Conservacin Ecolgica y de Inters para la ComunidadBalandra",0,0,0,2,0,0,2]
["Zona de Conservacion EcologicaEstero El Salado",0,2,0,14,0,0,16]
["Zona de Conservacion EcologicaLa Armella",0,0,0,11,0,1,12]
["Zona de Conservacion EcologicaLa Loma",0,0,0,11,0,2,13]
["Zona de Conservacion EcologicaReserva de Dzilam",0,0,0,11,0,0,11]
["Zona de Conservacion EcologicaSierra de Santa Catarina II",0,0,0,11,0,1,12]
["Zona de Preservacin Ecolgica de Centro de Poblacin - Subcategora de Parque IntraurbanoCanada Juriquilla",0,0,0,7,0,1,8]
["Zona de Preservacin Ecolgica de los Centros de Poblacin - Parque Intra-UrbanoJrica Poniente",0,0,0,7,0,1,8]
["Zona de Preservacin Ecolgica de los Centros de PoblacinBioparque Xla'kaj (Pueblo Antiguo)",0,0,0,13,1,0,14]
["Zona de Preservacin Ecolgica de los Centros de PoblacinCascada Vado Hondo y Gruta Cosal",0,0,0,10,0,0,10]
["Zona de Preservacin Ecolgica de los Centros de PoblacinCascadas de Cuatenhuatl",0,0,1,12,2,0,15]
["Zona de Preservacin Ecolgica de los Centros de PoblacinCerro de la Mscara",0,0,0,12,0,0,12]
["Zona de Preservacin Ecolgica de los Centros de PoblacinCueva del Murcilago del Ejido Topo Viejo",0,0,0,11,0,0,11]
["Zona de Preservacin Ecolgica de los Centros de PoblacinEjido El Palmito",0,0,1,13,1,0,15]
["Zona de Preservacin Ecolgica de los Centros de PoblacinEl Aguacatillo",0,0,0,11,0,1,12]
["Zona de Preservacin Ecolgica de los Centros de PoblacinEl Campanario",0,0,0,14,0,2,16]
["Zona de Preservacin Ecolgica de los Centros de PoblacinIsla de Oraba",0,0,0,15,0,0,15]
["Zona de Preservacin Ecolgica de los Centros de PoblacinLa Alameda o Los lamos Cuates",0,0,0,11,0,0,11]
["Zona de Preservacin Ecolgica de los Centros de PoblacinLa Lagunilla",0,0,0,12,0,1,13]
["Zona de Preservacin Ecolgica de los Centros de PoblacinLa Uva",0,0,0,12,0,0,12]
["Zona de Preservacin Ecolgica de los Centros de PoblacinSurutato",0,0,0,10,1,1,12]
["Zona de Preservacion Ecologica de Centro de PoblacBordo Benito Jurez",0,0,0,7,0,1,8]
["Zona de PreservacionEl Centenario",0,0,0,12,0,0,12]
["Zona de Prot Ecol destinada al Mej y Cons del AmbEl Tejar Garnica",0,0,0,12,3,3,18]
["Zona de Proteccion Ecologica de los Centros de PoblacionCerro Nopala y La Estancia",0,0,0,11,0,1,12]
["Zona de Proteccion Ecologica de los Centros de PoblacionMixquiapan",0,0,0,11,0,2,13]
["Zona de Proteccion Hidrologica y EcologicaLos Encinos",0,0,1,11,0,2,14]
["Zona de Proteccion Hidrologica y EcologicaPresa de Silva",0,0,0,8,0,1,9]
["Zona de Reserva EcologicaMontenegro",0,0,0,8,1,2,11]
["Zona de Reserva EcologicaTangano II",0,0,0,7,0,1,8]
["Zona de preservacin ecolgicaEl Charco del Ingenio y Parque Landeta",0,0,0,8,0,1,9]
["Zona especial sujeta a conservacin ecolgicaLa Vega Escondida",0,0,1,13,0,0,14]
["rea Municipal de Proteccin HidrolgicaBarranca Oblatos-Huentitn",0,1,0,12,1,2,16]
["rea Municipal de Proteccin HidrolgicaBarranca del Ro Santiago",0,2,1,17,1,2,23]
["rea Municipal de Proteccin HidrolgicaBosque El Nixticuil - San Esteban - El Diente",0,2,2,12,1,2,19]
["rea Municipal de Proteccin HidrolgicaBosque Los Colomos",0,2,1,12,1,2,18]
["rea Natural Protegida y Reserva EcolgicaSierra y Canon de Jimulco",0,0,0,11,0,0,11]

{"sheet":"TablaS2_#Spp_NOM059cat_ANPgob","index":1,"n_rows":569,"n_cols":6,"rows_kept":569,"merged":[[0,0,0,5],[1,0,2,0],[1,1,1,3],[1,4,2,4],[1,5,2,5]]}
["Número de especies por cateogría de riesgo según la NOM-059 en cada Área Natural Protegida gubernamental"]
["Área Natural Protegida Gubernamental (gob)","Categoría de riesgo según la NOM-059",null,null,"Total de especies por ANP ","Número de especies que se encuentran en alguna categoría de riesgo según la NOM-059"]
[null,"P","A","Pr"]
["Huiricuta y la Ruta Histrica Cultural del Pueblo Huichol - Ruta Huichola (sobreposicin)",0,0,1,9,{"$f":"(B4+C4+D4)","v":1}]
["Mario Molina Pasquel - Pinal del Zamorano (sobreposicin)",0,0,1,10,1]
["San Miguel Ajusco - Zempoala-La Bufa Otom-Mexicana (sobreposicin)",0,1,2,18,3]
["San Miguel Topilejo - Zempoala-La Bufa-Otom Mexicana (sobreposicin)",0,1,3,18,4]
["Sierra de Guadalupe - La Armella (sobreposicin)",0,0,2,12,2]
["Sierra de Guadalupe DF - Sierra de Guadalupe Edo. Mex. (sobreposicin)",0,0,2,12,2]
["ANP EstatalCerro Zapotecas",0,0,2,9,2]
["ANP de interes estatalTiacaque",0,0,3,12,3]
["ANP de valor escenico, historico y culturalSan Juan Bautista Tabi y Anexa Zac Nicte",0,0,3,9,3]
["ANP sujeta a Conservacion AmbientalBarranca Ro La Pastora, R. La Loma y R. San Joaqun",0,1,2,14,3]
["ANP sujeta a Conservacion AmbientalBarrancas Huizachal, Arroyo Santa Cruz y A. Plan de Zanja",1,1,2,14,4]
["ANPRo Filo-Bobos y su Entorno",0,0,4,18,4]
["APFyF(Corredor Biologico Chichinautzin)",0,2,4,22,6]
["APFyFBalaan Kaax",0,0,3,14,3]
["APFyFBoqueron de Tonala",0,0,0,7,0]
["APFyFCabo San Lucas",0,0,0,3,0]
["APFyFCampo Verde",0,1,4,15,5]
["APFyFCaon de Santa Elena",0,0,3,16,3]
["APFyFCaon del Usumacinta",0,0,4,22,4]
["APFyFCascada de Agua Azul",0,0,5,20,5]
["APFyFChan-Kin",0,0,4,16,4]
["APFyFCienegas de Lerma",0,2,3,17,5]
["APFyFCuatrocienegas",0,0,3,9,3]
["APFyFEl Jabali",0,0,4,22,4]
["APFyFIslas del Golfo de California",0,1,2,22,3]
["APFyFLa Primavera",0,1,4,19,5]
["APFyFLaguna Madre y Delta del Rio Bravo",1,2,4,24,7]
["APFyFLaguna de Terminos",0,0,4,19,4]
["APFyFMaderas del Carmen",0,0,3,16,3]
["APFyFManglares de Nichupte",0,0,5,15,5]
["APFyFMarismas Nacionales",0,0,3,20,3]
["APFyFMedanos de Samalayuca",0,0,2,12,2]
["APFyFMeseta de Cacaxtla",0,0,2,17,2]
["APFyFMetzabok",0,0,5,20,5]
["APFyFNaha",0,0,5,20,5]
["APFyFOcampo",0,0,3,16,3]
["APFyFOtoch Ma_Ax Yetel Kooh",0,0,6,16,6]
["APFyFPapigochic",0,0,3,10,3]
["APFyFSierra La Mojonera",0,0,3,8,3]
["APFyFSierra de Alamos - Rio Cuchujaqui",0,0,3,19,3]
["APFyFSierra de Alvarez",0,0,2,11,2]
["APFyFSierra de Quila",0,1,4,19,5]
["APFyFTutuaca",0,1,3,15,4]
["APFyFUaymil",0,0,3,13,3]
["APFyFValle de los Cirios",0,1,0,7,1]
["APFyFYum Balam",0,0,5,15,5]
["APRMLa Sepultura",0,0,9,34,9]
["APRMTerrenos de los Municipios de La Concordia, Angel Albino Corzo, Villaflores, Jiquipilas",0,0,6,25,6]
["APRNCuenca Hidrografica del Rio Necaxa",0,1,4,28,5]
["APRNCuencas de los Rios Valle de Bravo, Malacatepec, Tilostoc",0,1,4,19,5]
["APRNLas Huertas",0,0,3,21,3]
["Area Ecologica Protegida Reserva de la BiosferaEl Cielo",0,0,7,21,7]
["Area Estatal de Proteccion HidrologicaSierra del guila",0,1,4,20,5]
["Area Natural ProtegidaParque Pblico Cerro del Obispado",0,0,3,11,3]
["Area Protegida EcologicaColonia Parras de la Fuente",1,0,2,11,3]
["Area Verde Reserva para la Educacion EcologicaSan Juan del Monte",0,2,3,23,5]
["Area Verde Reserva para la Recreaccion y Educ EcolCerro Macuiltepetl",0,1,3,17,4]
["Area Verde Reserva para la Recreaccion y Educ EcolPredio Barragn",0,1,3,16,4]
["Area comunitaria de conservacion ecologicaMilpa Alta",1,1,3,18,5]
["Area de Conservacin Ecologica(Cerro La Galaxia)",0,1,3,17,4]
["Area de ConservacionCerro Colorado",0,0,2,12,2]
["Area de ConservacionMonte Alto",0,0,3,14,3]
["Area de Proteccion de Recursos NaturalesQuebrada de Santa Brbara",0,0,2,8,2]
["Area de Restauracion EcologicaCerro del Cubilete",0,0,3,10,3]
["Area de Restauracion EcologicaCuenca de la Soledad",0,0,1,8,1]
["Area de Restauracion EcologicaPresa Neutla y su Zona de Influencia",0,0,1,8,1]
["Area de Uso SustentableCerro de Arandas",0,0,2,9,2]
["Area de Uso SustentableCerro de los Amoles",0,1,4,13,5]
["Area de Uso SustentableCerros El Culiacn y La Gavia",0,1,3,12,4]
["Area de Uso SustentableCuenca Alta del Ro Temascato",0,0,2,9,2]
["Area de Uso SustentableLas Musas",0,0,2,10,2]
["Area de Uso SustentablePea Alta",0,0,1,9,1]
["Area de Uso SustentablePresa La Pursima y su Zona de Influencia",0,0,3,10,3]
["Area de Uso SustentableSierra de Lobos",0,1,2,10,3]
["Area de Uso SustentableSierra de los Agustinos",0,1,3,12,4]
["Areas Naturales TipicasChanal",0,0,2,7,2]
["Areas Naturales TipicasLa Concordia Zaragoza",0,0,1,10,1]
["Centro Ecologico Recreativo y Zona de AmortiguamiEl Zapotal",0,0,3,13,3]
["Destinado a Reserva EcologicaTatocapan",0,0,5,23,5]
["Jardn de Regeneracin y Recuperacin de EspeciesLaguna Ik",0,0,4,14,4]
["MNBonampak",0,0,4,15,4]
["MNCerro de la Silla",0,0,3,12,3]
["MNRio Bravo del Norte",0,0,3,17,3]
["MNYagul",0,0,1,10,1]
["MNYaxchilan",0,0,4,17,4]
["Manejo de Formaciones Naturales de Inters MunicipalPiedras Bola",0,0,2,16,2]
["Mejoramiento y conservacion del ambiente y estableMolino de San Roque",0,1,3,16,4]
["Monumento NaturalBernal de Horcasitas o Cerro de Bernal",1,0,2,13,3]
["Monumento NaturalCerro del Muerto",0,2,3,14,5]
["Monumento NaturalEl Stano de Las Golondrinas",0,0,1,13,1]
["Monumento NaturalGruta del Cerro Cocon",0,0,4,20,4]
["Monumento NaturalLa Hoya de las Huahuas",0,0,2,16,2]
["Monumento NaturalLa Region Volcanica Siete Luminarias",0,1,3,11,4]
["PNArrecife de Puerto Morelos",0,0,5,15,5]
["PNArrecifes de Cozumel",0,0,0,5,0]
["PNArrefice de Xcalak",0,0,3,13,3]
["PNBahia de Loreto",0,0,0,3,0]
["PNBarranca de Cupatitzio",0,0,4,17,4]
["PNBenito Juarez",0,0,2,11,2]
["PNBosencheve",0,0,0,16,0]
["PNCabo Pulmo",0,0,0,3,0]
["PNCaon del Rio Blanco",0,3,12,38,15]
["PNCaon del Sumidero",0,0,4,20,4]
["PNCascada de Bassaseachic",0,0,3,9,3]
["PNCerro de Garnica",0,0,5,19,5]
["PNCerro de la Estrella",0,0,2,12,2]
["PNCerro de las Campanas",0,0,1,8,1]
["PNCofre de Perote o Nauhcampatepetl",0,2,5,25,7]
["PNConstitucion de 1857",0,1,0,7,1]
["PNCosta Occ. de I Mujeres, Pta Cancun y Pta Nizuc",0,0,5,15,5]
["PNCumbres de Majalca",0,0,2,10,2]
["PNCumbres de Monterrey",0,0,6,20,6]
["PNCumbres del Ajusco",0,1,1,16,2]
["PNDesierto de los Leones",0,2,2,17,4]
["PNDesierto del Carmen o de Nixcongo",0,0,2,13,2]
["PNDzibilchantun",0,0,4,10,4]
["PNEl Chico",0,0,4,14,4]
["PNEl Cimatario",0,0,3,10,3]
["PNEl Historico Coyoacan",0,0,2,13,2]
["PNEl Potosi",0,0,1,10,1]
["PNEl Sabinal",0,0,3,9,3]
["PNEl Tepeyac",0,0,2,12,2]
["PNEl Tepozteco",0,2,4,20,6]
["PNEl Veladero",0,1,3,16,4]
["PNFuentes Brotantes de Tlalpan",0,0,2,14,2]
["PNGeneral Juan Alvarez",0,0,0,7,0]
["PNGogorron",0,0,2,11,2]
["PNGrutas de Cacahuamilpa",0,0,2,10,2]
["PNHuatulco",0,0,2,13,2]
["PNInsurg. Jose Maria Morelos",0,0,5,18,5]
["PNInsurgente Miguel Hidalgo y Costilla",0,2,2,17,4]
["PNIslas del Golfo de California",0,0,0,1,0]
["PNIztaccihuatl - Popocatepetl",0,2,2,18,4]
["PNLago de Camecuaro",0,1,5,13,6]
["PNLagunas de Chacahua",0,0,2,12,2]
["PNLagunas de Montebello",0,0,2,9,2]
["PNLagunas de Zempoala",0,2,3,18,5]
["PNLomas de Padierna",0,0,2,13,2]
["PNLos Marmoles",0,0,3,15,3]
["PNLos Novillos",0,0,3,11,3]
["PNLos Remedios",0,1,2,13,3]
["PNMalinche o Matlalcueyatl",0,1,3,13,4]
["PNMolino de Flores Netzahualcoyotl",0,0,2,11,2]
["PNNevado de Toluca",0,2,4,21,6]
["PNPalenque",0,0,5,20,5]
["PNPico de Orizaba",0,1,4,19,5]
["PNPico de Tancitaro",0,0,4,19,4]
["PNRayon",0,1,2,12,3]
["PNSacromonte",0,0,2,12,2]
["PNSierra de Organos",0,0,2,10,2]
["PNSierra de San Pedro Martir",0,1,2,10,3]
["PNSistema Arrecifal Veracruzano",0,0,3,15,3]
["PNTula",0,0,2,11,2]
["PNTulum",0,0,4,14,4]
["PNVolcan Nevado de Colima",0,0,4,23,4]
["PNXicotencatl",0,0,2,10,2]
["PNZona Marina del Archipielago de Espiritu Santo",0,0,0,1,0]
["Paisaje protegidoPena de Bernal",0,1,1,13,2]
["Parque Ecologico EstatalParque Laguna de Bacalar",0,0,3,14,3]
["Parque Ecologico RecreativoTenancingo - Malinalco - Zumpahuacan",0,1,3,16,4]
["Parque Ecologico Turistico RecreativoZempoala - La Bufa Otom-Mexica",0,2,4,22,6]
["Parque Ecologico Zoo Recreativo y TuristicoTollocan - Calimaya",0,0,4,16,4]
["Parque EcologicoLago Crter La Joya",0,1,3,12,4]
["Parque EcologicoLas Fuentes",0,0,2,9,2]
["Parque EcologicoMegaparque",0,0,1,9,1]
["Parque EcologicoParque Ecolgico El Tecun",0,0,2,7,2]
["Parque EcologicoParque Metropolitano",0,0,2,9,2]
["Parque Estatal Ecologico, Turistico y RecreativoHermenegildo Galeana",0,0,3,15,3]
["Parque Estatal Ecologico, Turistico y RecreativoIsla de las Aves",0,0,2,11,2]
["Parque Estatal Ecologico, Turistico y RecreativoSan Jos Chalco",0,0,2,11,2]
["Parque Estatal Ecologico, Turistico y RecreativoSierra Hermosa",0,0,2,11,2]
["Parque EstatalAgua Blanca",0,0,5,19,5]
["Parque EstatalAlameda Poniente San Jos de la Pila",0,0,3,16,3]
["Parque EstatalBicentenario",0,1,3,14,4]
["Parque EstatalBosque El Hiloche",0,0,4,14,4]
["Parque EstatalBosque Mesfilo Nevado de Colima",0,0,5,23,5]
["Parque EstatalCan de Fernndez",0,0,4,10,4]
["Parque EstatalCentro Ceremonial Mazahua",0,0,3,13,3]
["Parque EstatalCerro Cualtenco",0,0,3,14,3]
["Parque EstatalCerro El Faro",0,1,2,14,3]
["Parque EstatalCerro Gordo",0,0,2,12,2]
["Parque EstatalCerro Los Monos",0,1,2,14,3]
["Parque EstatalCerro Punhuato",0,1,5,17,6]
["Parque EstatalCerro del Fortn",0,0,1,10,1]
["Parque EstatalChapa de Mota",0,0,2,11,2]
["Parque EstatalCubitos",0,0,1,12,1]
["Parque EstatalEl Bosque Adolfo Roque Bautista",1,0,1,9,2]
["Parque EstatalEl Oso Bueno",0,0,2,11,2]
["Parque EstatalGrutas de la Estrella",0,0,2,11,2]
["Parque EstatalHierve El Agua",0,0,1,9,1]
["Parque EstatalIng. Gerardo Cruickshank Garca",0,0,2,12,2]
["Parque EstatalKabah",0,0,3,9,3]
["Parque EstatalLa Primavera",0,1,0,10,1]
["Parque EstatalLa Quemada",0,0,2,8,2]
["Parque EstatalLagunas de Yalahau",0,0,3,9,3]
["Parque EstatalLic. Isidro Fabela",0,0,2,11,2]
["Parque EstatalManantial de la Media Luna",0,0,2,10,2]
["Parque EstatalMetropolitano de Naucalpan",0,1,2,12,3]
["Parque EstatalPalma Larga",0,0,2,10,2]
["Parque EstatalParque Ecolgico Regional del Itsmo",0,0,3,16,3]
["Parque EstatalParque Estado de Mxico - Naucalli",0,1,2,12,3]
["Parque EstatalRuta Huichola",0,0,2,11,2]
["Parque EstatalSantuario del Agua Laguna de Zumpango",0,0,2,11,2]
["Parque EstatalSantuario del Agua Lagunas de Xico",0,0,2,12,2]
["Parque EstatalSantuario del Agua Manantiales de Tiacaque",0,0,3,12,3]
["Parque EstatalSantuario del Agua Presa Brockman y Victoria",0,1,3,13,4]
["Parque EstatalSantuario del Agua Presa Corral de Piedra",0,1,3,15,4]
["Parque EstatalSantuario del Agua Presa ado",0,0,2,11,2]
["Parque EstatalSantuario del Agua Sistema Hidrolgico Presa Huapango",0,0,2,11,2]
["Parque EstatalSantuario del Agua Valle de Bravo",0,0,3,14,3]
["Parque EstatalSantuario del Agua y Forestal Manantial El Salto de Atlautla - Ecatzingo",0,1,2,14,3]
["Parque EstatalSantuario del Agua y Forestal Manantiales Cascada Diamantes",0,2,2,15,4]
["Parque EstatalSantuario del Agua y Forestal Presa Guadalupe",0,1,2,12,3]
["Parque EstatalSantuario del Agua y Forestal Presa Taxhimay",0,0,2,11,2]
["Parque EstatalSantuario del Agua y Forestal Presa Villa Victoria",0,0,5,18,5]
["Parque EstatalSantuario del Agua y Forestal Subcuenca Tributaria Arroyo Sila",0,0,3,12,3]
["Parque EstatalSantuario del Agua y Forestal Subcuenca Tributaria Presa Antonio Alzate",0,0,4,13,4]
["Parque EstatalSantuario del Agua y Forestal Subcuenca Tributaria Ro Mayorazgo-Temoaya",0,1,2,12,3]
["Parque EstatalSantuario del Agua y Forestal Subcuenca Tributaria Ro San Lorenzo",0,2,3,17,5]
["Parque EstatalSierra Morelos",0,0,3,15,3]
["Parque EstatalSierra Patlachique",0,0,2,11,2]
["Parque EstatalSierra de Guadalupe",0,0,2,12,2]
["Parque EstatalSierra de Tepozotln",0,0,2,11,2]
["Parque Municipal y de Reserva PotencialLaguna de Chignahuapan",0,2,3,17,5]
["Parque MunicipalEl Calvario",0,0,3,14,3]
["Parque MunicipalLas Sequoias",0,0,2,11,2]
["Parque MunicipalTlanepantla",0,1,2,12,3]
["Parque Natural para la Recreacion PopularAtizapan - Valle Escondido",0,1,2,12,3]
["Parque Natural para la Recreacion PopularEl Ocotal",0,0,2,11,2]
["Parque Natural para la Recreacion PopularNahuatlaca - Matlazinca",0,2,3,21,5]
["Parque Natural para la Recreacion PopularSierra de Nanchititla",0,0,2,12,2]
["Parque NaturalEl Barrancn de las Guacamayas",0,0,2,18,2]
["Parque NaturalEl Llano",0,0,2,11,2]
["Parque NaturalLaguna de Chancanaab",0,0,0,5,0]
["Parque Urbano EcologicoLic. Salvador Bernal Murguia",0,0,4,16,4]
["Parque Urbano EcologicoParque Francisco Zarco",0,1,5,16,6]
["Parque Urbano Sujeto a Proteccin EcolgicaTabasco 2000",0,0,3,18,3]
["Parque UrbanoAdolfo Ruz Cortinez",0,0,0,5,0]
["Parque UrbanoAndrs Quintana Roo",0,0,2,11,2]
["Parque UrbanoAnexo Villa de Guadalupe",0,0,1,12,1]
["Parque UrbanoAngel Albino Corzo",0,0,1,9,1]
["Parque UrbanoArroyo Grande",0,0,7,22,7]
["Parque UrbanoAztln",0,0,2,12,2]
["Parque UrbanoBaja California",0,0,3,18,3]
["Parque UrbanoBenito Jurez",0,0,1,8,1]
["Parque UrbanoBosque Cuauhtemoc",0,1,4,15,5]
["Parque UrbanoCalifornia",0,0,1,9,1]
["Parque UrbanoCarmen Yaxchuch",0,0,2,6,2]
["Parque UrbanoCerrito de la Independencia",0,0,4,15,4]
["Parque UrbanoChacamax",0,0,3,18,3]
["Parque UrbanoColonia Barrio Nuevo",0,0,3,11,3]
["Parque UrbanoCongregacin El Robln",0,0,2,8,2]
["Parque UrbanoCristbal Obregn",0,0,1,9,1]
["Parque UrbanoCuahutemoc",0,0,1,6,1]
["Parque UrbanoEcolgico de Capcuaro",0,0,4,13,4]
["Parque UrbanoEcolgico de Taquiscuareo",0,1,4,10,5]
["Parque UrbanoEcolgico de Uruapan",0,0,4,14,4]
["Parque UrbanoEcolgico del Fideicomiso de la Cd. Industrial de Morelia",0,1,5,17,6]
["Parque UrbanoEfran A. Gutirrez",0,0,4,14,4]
["Parque UrbanoEjido San Juan de Guadalupe",0,0,2,10,2]
["Parque UrbanoEl Aguajito",0,0,0,6,0]
["Parque UrbanoEl Bajio",0,0,0,6,0]
["Parque UrbanoEl Bosque",0,0,1,10,1]
["Parque UrbanoEl Potrero",0,0,0,6,0]
["Parque UrbanoFrancisco Romo Serrano",0,0,2,8,2]
["Parque UrbanoIgnacio Zaragoza",0,0,0,6,0]
["Parque UrbanoInstituto Tec. Agropecuario No 7",0,1,4,14,5]
["Parque UrbanoJos Castillo Tielemans",0,0,3,13,3]
["Parque UrbanoKabah",0,0,5,15,5]
["Parque UrbanoLa Competencia",0,0,4,17,4]
["Parque UrbanoLa Eucalera de Paso de Hidalgo",0,1,4,13,5]
["Parque UrbanoLa Pimienta",0,0,4,15,4]
["Parque UrbanoLa Sombra Carrizal",0,0,5,19,5]
["Parque UrbanoLa Ventana",0,0,5,19,5]
["Parque UrbanoLaguna La Escondida",1,1,3,17,5]
["Parque UrbanoLiberacin",0,0,4,21,4]
["Parque UrbanoLoma Bonita",0,0,1,6,1]
["Parque UrbanoLos Amates",0,0,1,7,1]
["Parque UrbanoLos ngeles",0,0,0,7,0]
["Parque UrbanoLuis Espinosa",0,0,5,17,5]
["Parque UrbanoLzaro Crdenas",0,0,3,20,3]
["Parque UrbanoMVZ Benigno Hernndez Hidalgo",0,0,6,19,6]
["Parque UrbanoManuel vila Camacho",0,0,1,6,1]
["Parque UrbanoMarte R. Gmez",0,0,2,14,2]
["Parque UrbanoMirador",0,0,1,7,1]
["Parque UrbanoNacatili",0,0,2,11,2]
["Parque UrbanoNueva Palestina",0,0,2,12,2]
["Parque UrbanoPalenque Los Pinos",0,0,0,6,0]
["Parque UrbanoParaso",0,0,1,9,1]
["Parque UrbanoParque Jurez",0,1,4,15,5]
["Parque UrbanoParque Lineal",0,0,4,17,4]
["Parque UrbanoParque la Primavera",0,0,3,13,3]
["Parque UrbanoPaseo de la Presa",0,0,3,11,3]
["Parque UrbanoPonciano Arriaga",0,0,1,11,1]
["Parque UrbanoProgreso Agrario",0,0,1,10,1]
["Parque UrbanoRibera Saquiminguez",0,0,7,21,7]
["Parque UrbanoRoblada Grande",0,0,0,6,0]
["Parque UrbanoSacajtic",0,0,4,18,4]
["Parque UrbanoSalto Grande",0,0,3,17,3]
["Parque UrbanoSan Carlos",0,0,2,13,2]
["Parque UrbanoSan Francisco (Antes La Frontera)",0,0,5,17,5]
["Parque UrbanoSan Jernimo Tulija",0,0,5,19,5]
["Parque UrbanoSan Lucas (Cabecera Municipal)",0,0,2,10,2]
["Parque UrbanoSan Marcos",0,0,1,6,1]
["Parque UrbanoSlo Dios",0,0,5,18,5]
["Parque UrbanoTenochtitln",0,0,1,9,1]
["Parque UrbanoTierra y Libertad",0,0,4,14,4]
["Parque UrbanoUnin y Progreso (Chiapa de Corzo)",0,0,2,11,2]
["Parque UrbanoUnin y Progreso (Villaflores)",0,0,1,7,1]
["Parque UrbanoUnion Agrarista",0,0,2,13,2]
["Parque UrbanoVenustiano Carranza",0,0,2,11,2]
["Parque UrbanoVicente Guerrero",0,0,1,10,1]
["Parque UrbanoZacatonal de Jurez",0,0,4,18,4]
["Parque UrbanoZona de Los Ros",0,0,7,21,7]
["Parque Urbanorsulo Galvn",0,0,2,14,2]
["Parque de Recreacion PopularJose Mara Velasco",0,0,2,11,2]
["ParqueFrancisco Javier Clavijero",0,1,3,18,4]
["RBAlto Golfo de California, Delta del Rio Colorado",0,0,1,7,1]
["RBArrecifes de Sian Kaan",0,0,4,14,4]
["RBBahia de los Angeles, Canales de Ballenas y de Salsipuedes",0,1,0,3,1]
["RBBarranca de Metztitlan",0,1,4,24,5]
["RBCalakmul",0,0,5,19,5]
["RBChamela-Cuixmala",0,0,2,17,2]
["RBComplejo Lagunar Ojo de Liebre",0,0,0,1,0]
["RBEl Pinacate y Gran Desierto de Altar",0,0,2,9,2]
["RBEl Triunfo",0,0,10,32,10]
["RBEl Vizcaino",0,0,0,3,0]
["RBIslas Marias",0,0,1,4,1]
["RBJanos",0,1,5,21,6]
["RBLa Encrucijada",0,0,2,18,2]
["RBLa Michilia",0,0,3,9,3]
["RBLacan-Tun",0,0,4,17,4]
["RBLos Petenes",0,0,3,9,3]
["RBLos Tuxtlas",0,0,9,36,9]
["RBMapimi",0,0,4,11,4]
["RBMariposa Monarca",0,1,4,17,5]
["RBMontes Azules",0,0,4,19,4]
["RBPantanos de Centla",0,0,5,20,5]
["RBRia Celestun",0,0,4,10,4]
["RBRia Lagartos",0,0,4,14,4]
["RBSelva El Ocote",0,0,5,20,5]
["RBSian Kaan",0,0,6,16,6]
["RBSierra Gorda",0,1,9,33,10]
["RBSierra Gorda de Guanajuato",0,1,2,20,3]
["RBSierra La Laguna",0,0,0,3,0]
["RBSierra de Abra Tanchipa",1,0,2,10,3]
["RBSierra de Huautla",0,0,2,12,2]
["RBSierra de Manantlan",0,0,4,27,4]
["RBTehuacan-Cuicatlan",0,0,3,28,3]
["RBTiburon Ballena",0,0,4,14,4]
["RBVolcan Tacana",0,1,12,29,13]
["RBZicuiran - Infiernillo",0,0,4,19,4]
["Reserva BioticaGertrude Duby",0,0,2,7,2]
["Reserva ComunitariaSanta Mara de Ocuiln",0,1,2,12,3]
["Reserva EcolgicaEl Astillero",0,0,2,11,2]
["Reserva EcolgicaTulancingo",0,0,2,13,2]
["Reserva Ecologica ComunitariaSan Bernabe de Ocotepec",0,1,1,15,2]
["Reserva Ecologica ComunitariaSan Miguel Ajusco",0,1,2,18,3]
["Reserva Ecologica ComunitariaSan Miguel Topilejo",0,1,3,19,4]
["Reserva Ecologica ComunitariaSan Nicols Totolapan",0,1,1,15,2]
["Reserva Ecologica EstatalLa Caada",0,0,2,12,2]
["Reserva Ecologica EstatalLa Sabana",0,0,2,12,2]
["Reserva EcologicaArroyo Moreno",0,0,3,15,3]
["Reserva EcologicaCascadas de Reforma",0,0,3,15,3]
["Reserva EcologicaCerro de las Culebras",0,2,3,19,5]
["Reserva EcologicaLa Martinica",0,1,4,19,5]
["Reserva EcologicaLaguna de las Ilusiones",0,0,3,18,3]
["Reserva EcologicaPacho Nuevo",0,1,3,18,4]
["Reserva EcologicaPancho Poza",0,2,2,20,4]
["Reserva EcologicaParque Ecolgico Laguna La Lima",0,0,3,18,3]
["Reserva EcologicaParque Ecolgico de la Chontalpa",0,0,2,17,2]
["Reserva EcologicaRo Playa",0,0,2,17,2]
["Reserva EcologicaSierra de Otontepec",1,0,2,14,3]
["Reserva EcologicaSierra de Tabasco",0,0,5,21,5]
["Reserva Estat con carac de Reserva de la BiosferaReal de Guadalczar",0,0,3,10,3]
["Reserva EstatalCerro Mactumatza",0,0,3,13,3]
["Reserva EstatalCinagas y Manglares de la Costa Norte de Yucatn",0,0,4,10,4]
["Reserva EstatalEl Nanchal",0,0,1,16,1]
["Reserva EstatalEl Pericon",0,0,2,10,2]
["Reserva EstatalLa Lluvia",0,0,0,6,0]
["Reserva EstatalLas Estacas",0,0,2,11,2]
["Reserva EstatalLos Olivos",1,0,2,17,3]
["Reserva EstatalMario Molina Pasquel",0,0,1,10,1]
["Reserva EstatalPalos Grandes",0,0,2,10,2]
["Reserva EstatalSelvas y Humedales de Cozumel",0,0,0,5,0]
["Reserva EstatalSierra de Montenegro",0,0,3,12,3]
["Reserva EstatalSierra de Tentzo",0,0,2,13,2]
["Reserva EstatalSierra del Este y Sierra de Enmedio",0,0,1,7,1]
["Reserva EstatalSistema Lagunar Chichankanab",0,0,2,11,2]
["Reserva EstatalSistema Tetzcotzingo",0,1,2,14,3]
["Reserva EstatalTancojol",1,0,1,13,2]
["Reserva PatrimonialLagunas Costeras y Serranias Aledaas de la Costa de Michoacan",0,0,1,12,1]
["Reserva PatrimonialVolcn El Jorullo",0,0,3,12,3]
["Reserva de ConservacionPinal del Zamorano",0,0,1,10,1]
["Reserva de ConservacionZona Cuenca de la Esperanza",0,0,1,8,1]
["Reserva de la Biosfera EstatalSierra de San Juan",0,0,4,24,4]
["Reserva de la Biosfera EstatalSierra de Vallejo",0,0,4,20,4]
["Reseva EcologicaTembladeras",0,0,3,15,3]
["Reseva EcologicaYu - Balcah",0,0,4,20,4]
["Restauracion EcologicaLaguna de Yuriria y su Zona de Influencia",0,1,3,12,4]
["SANTIslas La Pajarera, Cocinas, Mamut, Colorada, San Pedro, San Agustin, San Andres y Negrita, y los isoltes Los Anegados, Novillas, Mosca y Submarino (Islas en la Bahia de Chamela)",0,0,1,14,1]
["SANTPlaya Ceuta",0,0,2,15,2]
["SANTPlaya El Tecuan",0,0,2,15,2]
["SANTPlaya Piedra de Tlacoyunque",0,0,2,9,2]
["SANTPlaya Teopa",0,0,1,14,1]
["SANTPlaya adyacente a la localidad denominada Rio Lagartos",0,0,4,14,4]
["SANTPlaya de Cuitzamala",0,0,1,11,1]
["SANTPlaya de Escobilla",0,0,2,12,2]
["SANTPlaya de Maruata y Colola",0,0,1,10,1]
["SANTPlaya de Mismaloya",0,0,1,14,1]
["SANTPlaya de Puerto Arista",0,0,3,16,3]
["SANTPlaya de Rancho Nuevo",1,0,3,13,4]
["SANTPlaya de Tierra Colorada",0,0,2,11,2]
["SANTPlaya de la Bahia de Chacahua",0,0,2,12,2]
["SANTPlaya el Verde Camacho",0,0,2,17,2]
["Sitio Sagrado NaturalHuiricuta y la Ruta Histrica Cultural del Pueblo Huichol",0,0,3,10,3]
["Sitio Sagrado NaturalLas Cuevas del Viento y la Fertilidad",0,0,2,15,2]
["Terreno de actividad publicaLas Lajas - Cerro del Lobo",0,0,4,15,4]
["Transferencia de prediosRegin denominada Cerro Blanco RB en La Michila",0,0,3,10,3]
["Z de Rest Ecol y Z de Ref de Aves Mar Migr y FFSPlaya Verde Camacho (1)",0,0,2,14,2]
["Zona Especial Prot Flora y Fauna Silvestre y AcuatLos Petenes",0,0,3,9,3]
["Zona Especial Sujeta a Conservacion EcologicaAltas Cumbres",0,0,4,15,4]
["Zona Preserv Ecol de los Centros de PoblacinCerro La Paila - Matas Rodrguez",0,0,2,12,2]
["Zona Preserv Ecol de los Centros de PoblacinCerro La Paila-El Susto",0,0,2,12,2]
["Zona Preserv Ecol de los Centros de PoblacionBosque de Tlalpan",0,0,2,14,2]
["Zona Preserv Ecol de los Centros de PoblacionEl Cedral",0,1,2,11,3]
["Zona Preserv Ecol de los Centros de PoblacionLa Alberca de Los Espinos",0,1,5,12,6]
["Zona Preserv Ecol de los Centros de PoblacionLaguna de Zacapu y su Rivera",0,1,5,13,6]
["Zona Sujeta Conservacin Ecologica-Res Ecol EstataEstero San Jos del Cabo",0,0,0,3,0]
["Zona Sujeta Conservacion Ecologica y de Valor Esce(Santuario del Loro Huasteco)",0,1,0,12,1]
["Zona Sujeta Conservacion Ecologica y de Valor EscePunta Canales o Isla del Amor",0,0,3,15,3]
["Zona Sujeta a Conservacin Ecolgica(Parque Ecolgico de la Ciudad de Mxico)",0,0,1,13,1]
["Zona Sujeta a Conservacin EcolgicaAcua",0,0,3,10,3]
["Zona Sujeta a Conservacin EcolgicaAgua Caliente",0,1,3,14,4]
["Zona Sujeta a Conservacin EcolgicaArivechi Cerro Las Conchas",0,1,2,12,3]
["Zona Sujeta a Conservacin EcolgicaBalam-Kin",0,0,4,16,4]
["Zona Sujeta a Conservacin EcolgicaBalam-Ku",0,0,5,19,5]
["Zona Sujeta a Conservacin EcolgicaBao de San Ignacio",0,0,3,11,3]
["Zona Sujeta a Conservacin EcolgicaBarranca Mxico 68",0,1,2,12,3]
["Zona Sujeta a Conservacin EcolgicaBarranca de Tecamachalco",0,1,2,13,3]
["Zona Sujeta a Conservacin EcolgicaBosques de las Lomas",0,1,2,13,3]
["Zona Sujeta a Conservacin EcolgicaCan Pino del Campo",0,0,3,10,3]
["Zona Sujeta a Conservacin EcolgicaCerro El Potos",0,0,4,11,4]
["Zona Sujeta a Conservacin EcolgicaCerro El Topo",0,0,3,12,3]
["Zona Sujeta a Conservacin EcolgicaCerro Hueco",0,0,4,14,4]
["Zona Sujeta a Conservacin EcolgicaCerro La Mota",0,0,4,13,4]
["Zona Sujeta a Conservacin EcolgicaCerro Meyapac",0,0,4,15,4]
["Zona Sujeta a Conservacin EcolgicaCerro Peln",0,1,5,15,6]
["Zona Sujeta a Conservacin EcolgicaCerro del Estribo Grande",0,1,4,13,5]
["Zona Sujeta a Conservacin EcolgicaCinega del Fuerte",1,0,3,14,4]
["Zona Sujeta a Conservacin EcolgicaCuxtal",0,0,4,10,4]
["Zona Sujeta a Conservacin EcolgicaEcoguardas",0,0,1,13,1]
["Zona Sujeta a Conservacin EcolgicaEjidos de Xochimilco y San Gregorio Atlapulco",0,0,2,14,2]
["Zona Sujeta a Conservacin EcolgicaEl Cabildo Amatal",0,0,2,14,2]
["Zona Sujeta a Conservacin EcolgicaEl Gancho Murillo",0,0,2,14,2]
["Zona Sujeta a Conservacin EcolgicaEl Mineral de Nuestra Seora de la Candelaria",0,0,0,8,0]
["Zona Sujeta a Conservacin EcolgicaEl Recreo",0,0,2,6,2]
["Zona Sujeta a Conservacin EcolgicaEl Refugio de Apanaco",0,0,3,10,3]
["Zona Sujeta a Conservacin EcolgicaEl Tangano",0,0,2,9,2]
["Zona Sujeta a Conservacin EcolgicaEl Texcal",0,0,3,11,3]
["Zona Sujeta a Conservacin EcolgicaEspritu Santo",0,1,2,12,3]
["Zona Sujeta a Conservacin EcolgicaEx-Escuela Central Agrcola de la Huerta",0,1,5,15,6]
["Zona Sujeta a Conservacin EcolgicaHuitepec - Los Alcanfores",0,0,2,8,2]
["Zona Sujeta a Conservacin EcolgicaHumedales La Libertad",0,0,4,18,4]
["Zona Sujeta a Conservacin EcolgicaHumedales de Montaa La Kisst",0,0,2,8,2]
["Zona Sujeta a Conservacin EcolgicaHumedales de Montaa Mara Eugenia",0,0,2,7,2]
["Zona Sujeta a Conservacin EcolgicaLa Alberca y su Zona de Influencia",0,0,3,13,3]
["Zona Sujeta a Conservacin EcolgicaLa Chichihua",0,0,2,16,2]
["Zona Sujeta a Conservacin EcolgicaLa Cinega",0,0,2,11,2]
["Zona Sujeta a Conservacin EcolgicaLa Encrucijada",0,0,2,18,2]
["Zona Sujeta a Conservacin EcolgicaLa Hediondilla",0,0,3,9,3]
["Zona Sujeta a Conservacin EcolgicaLa Laguna de Chandio",0,0,3,17,3]
["Zona Sujeta a Conservacin EcolgicaLa Mesa de Tzitzio",0,0,5,16,5]
["Zona Sujeta a Conservacin EcolgicaLa Pera",0,0,4,14,4]
["Zona Sujeta a Conservacin EcolgicaLa Pursima",0,0,3,8,3]
["Zona Sujeta a Conservacin EcolgicaLa Sepultura",0,0,8,32,8]
["Zona Sujeta a Conservacin EcolgicaLa Trinidad (2000)",0,0,3,10,3]
["Zona Sujeta a Conservacin EcolgicaLa Trinidad (2002)",0,0,3,10,3]
["Zona Sujeta a Conservacin EcolgicaLaguna de Manat",0,0,5,15,5]
["Zona Sujeta a Conservacin EcolgicaLas Flores",0,0,3,10,3]
["Zona Sujeta a Conservacin EcolgicaLas Tinajas de Huandacareo",0,1,4,12,5]
["Zona Sujeta a Conservacin EcolgicaLlano de la Soledad",0,0,3,9,3]
["Zona Sujeta a Conservacin EcolgicaLos Chorros del Varal",0,0,3,14,3]
["Zona Sujeta a Conservacin EcolgicaLos Sabinos - Santa Rosa - San Cristobal",0,0,2,10,2]
["Zona Sujeta a Conservacin EcolgicaManantial La Mintzita y su Zona de Amortiguamiento",0,1,4,14,5]
["Zona Sujeta a Conservacin EcolgicaManantiales de Parcuaro",0,0,4,15,4]
["Zona Sujeta a Conservacin EcolgicaNavachiste",0,0,2,12,2]
["Zona Sujeta a Conservacin EcolgicaParque Ecolgico Agua Tibia-Jeroche",0,1,4,12,5]
["Zona Sujeta a Conservacin EcolgicaParque Ecolgico Laguna del Camarn",0,0,3,18,3]
["Zona Sujeta a Conservacin EcolgicaPico El Loro-Paxtal",0,1,8,29,9]
["Zona Sujeta a Conservacin EcolgicaRancho Los Pitzocales o El Carmen",0,0,2,10,2]
["Zona Sujeta a Conservacin EcolgicaRancho Nuevo",0,0,2,7,2]
["Zona Sujeta a Conservacin EcolgicaRefugio Estatal de Flora y Fauna Laguna Colombia",0,0,0,5,0]
["Zona Sujeta a Conservacin EcolgicaRefugio Estatal de Flora y Fauna Sistema Lagunar Chacmochuch",0,0,5,15,5]
["Zona Sujeta a Conservacin EcolgicaReserva El Palmar",0,0,4,10,4]
["Zona Sujeta a Conservacin EcolgicaRo Grande San Pedro",0,0,2,11,2]
["Zona Sujeta a Conservacin EcolgicaSan Elas",0,0,3,10,3]
["Zona Sujeta a Conservacin EcolgicaSan Juan y Puentes",0,0,3,9,3]
["Zona Sujeta a Conservacin EcolgicaSanda El Grande",0,0,4,11,4]
["Zona Sujeta a Conservacin EcolgicaSanta Ana",0,0,4,20,4]
["Zona Sujeta a Conservacin EcolgicaSanta Marta de Abajo",0,0,3,9,3]
["Zona Sujeta a Conservacin EcolgicaSantuario de la Tortuga Marina  Xcacel - Xcacelito",0,0,4,14,4]
["Zona Sujeta a Conservacin EcolgicaSantuario del Manat, Baha de Chetumal",0,0,5,16,5]
["Zona Sujeta a Conservacin EcolgicaSerrana de Zapalinam",0,0,5,13,5]
["Zona Sujeta a Conservacin EcolgicaSierra Cerro de la Silla",0,0,3,13,3]
["Zona Sujeta a Conservacin EcolgicaSierra Corral de los Bandidos",0,0,4,12,4]
["Zona Sujeta a Conservacin EcolgicaSierra El Fraile y San Miguel",0,0,3,11,3]
["Zona Sujeta a Conservacin EcolgicaSierra Fra",0,2,2,15,4]
["Zona Sujeta a Conservacin EcolgicaSierra Las Mitras",0,0,3,13,3]
["Zona Sujeta a Conservacin EcolgicaSierra Picachos",0,0,3,12,3]
["Zona Sujeta a Conservacin EcolgicaSierra de Guadalupe",0,0,2,12,2]
["Zona Sujeta a Conservacin EcolgicaSierra de Huautla",0,0,2,11,2]
["Zona Sujeta a Conservacin EcolgicaSierra de Santa Catarina I",0,0,2,12,2]
["Zona Sujeta a Conservacin EcolgicaSistema Lagunar Catazaja",0,0,4,19,4]
["Zona Sujeta a Conservacin EcolgicaSistema de Presas Abelardo Rodrguez Lujn - El Molinito",0,0,3,10,3]
["Zona Sujeta a Conservacin EcolgicaTehuacn - Zapotitln",0,0,0,7,0]
["Zona Sujeta a Conservacin EcolgicaTercera Seccin del Bosque de Chapultepec I (Terrenos Federales y del DF)",0,1,2,13,3]
["Zona Sujeta a Conservacin EcolgicaTercera Seccin del Bosque de Chapultepec II (Terrenos Expropiados)",0,1,2,13,3]
["Zona Sujeta a Conservacin EcolgicaTrinidad y Llano Salas",0,0,3,10,3]
["Zona Sujeta a Conservacin EcolgicaTzama Cum Pumy",0,0,4,17,4]
["Zona Sujeta a Conservacin EcolgicaVaqueras",0,0,3,10,3]
["Zona Sujeta a Conservacin EcolgicaVolcn Tacan",0,0,10,26,10]
["Zona Sujeta a Conservacin EcolgicaZona Occidental de Microcuencas",0,0,1,12,1]
["Zona Sujeta a Conservacion AmbientalMalpais de Santo Toms de los Pltanos",0,0,3,13,3]
["Zona Sujeta a Conservacion EcologicaEl Canelar",0,0,1,10,1]
["Zona Sujeta a Conservacion EcologicaEstero El Soldado",0,0,2,9,2]
["Zona Sujeta a Reserva EcologicaParque Ecolgico Pblico Diego Muz Camargo",0,0,2,9,2]
["Zona Sujeta a Reserva EcologicaRancho Teometitla",0,0,2,10,2]
["Zona de Amortiguamiento de la Reserva EcologicaCentro de Interpretacin de la Naturaleza",0,0,4,19,4]
["Zona de Conservacin Ecolgica y de Inters para la ComunidadBalandra",0,0,0,2,0]
["Zona de Conservacion EcologicaEstero El Salado",0,0,2,16,2]
["Zona de Conservacion EcologicaLa Armella",0,0,2,12,2]
["Zona de Conservacion EcologicaLa Loma",0,0,2,13,2]
["Zona de Conservacion EcologicaReserva de Dzilam",0,0,4,11,4]
["Zona de Conservacion EcologicaSierra de Santa Catarina II",0,0,2,12,2]
["Zona de Preservacin Ecolgica de Centro de Poblacin - Subcategora de Parque IntraurbanoCanada Juriquilla",0,0,1,8,1]
["Zona de Preservacin Ecolgica de los Centros de Poblacin - Parque Intra-UrbanoJrica Poniente",0,0,1,8,1]
["Zona de Preservacin Ecolgica de los Centros de PoblacinBioparque Xla'kaj (Pueblo Antiguo)",0,0,4,14,4]
["Zona de Preservacin Ecolgica de los Centros de PoblacinCascada Vado Hondo y Gruta Cosal",0,0,0,10,0]
["Zona de Preservacin Ecolgica de los Centros de PoblacinCascadas de Cuatenhuatl",1,0,2,15,3]
["Zona de Preservacin Ecolgica de los Centros de PoblacinCerro de la Mscara",0,0,2,12,2]
["Zona de Preservacin Ecolgica de los Centros de PoblacinCueva del Murcilago del Ejido Topo Viejo",0,0,2,11,2]
["Zona de Preservacin Ecolgica de los Centros de PoblacinEjido El Palmito",0,0,2,15,2]
["Zona de Preservacin Ecolgica de los Centros de PoblacinEl Aguacatillo",0,0,2,12,2]
["Zona de Preservacin Ecolgica de los Centros de PoblacinEl Campanario",0,1,2,16,3]
["Zona de Preservacin Ecolgica de los Centros de PoblacinIsla de Oraba",0,0,1,15,1]
["Zona de Preservacin Ecolgica de los Centros de PoblacinLa Alameda o Los lamos Cuates",0,0,1,11,1]
["Zona de Preservacin Ecolgica de los Centros de PoblacinLa Lagunilla",0,0,2,13,2]
["Zona de Preservacin Ecolgica de los Centros de PoblacinLa Uva",0,0,2,12,2]
["Zona de Preservacin Ecolgica de los Centros de PoblacinSurutato",0,0,1,12,1]
["Zona de Preservacion Ecologica de Centro de PoblacBordo Benito Jurez",0,0,1,8,1]
["Zona de PreservacionEl Centenario",0,0,2,12,2]
["Zona de Prot Ecol destinada al Mej y Cons del AmbEl Tejar Garnica",0,1,3,18,4]
["Zona de Proteccion Ecologica de los Centros de PoblacionCerro Nopala y La Estancia",0,0,3,12,3]
["Zona de Proteccion Ecologica de los Centros de PoblacionMixquiapan",0,0,2,13,2]
["Zona de Proteccion Hidrologica y EcologicaLos Encinos",0,0,2,14,2]
["Zona de Proteccion Hidrologica y EcologicaPresa de Silva",0,0,2,9,2]
["Zona de Reserva EcologicaMontenegro",0,0,1,11,1]
["Zona de Reserva EcologicaTangano II",0,0,1,8,1]
["Zona de preservacin ecolgicaEl Charco del Ingenio y Parque Landeta",0,0,1,9,1]
["Zona especial sujeta a conservacin ecolgicaLa Vega Escondida",1,0,3,14,4]
["rea Municipal de Proteccin HidrolgicaBarranca Oblatos-Huentitn",0,1,3,16,4]
["rea Municipal de Proteccin HidrolgicaBarranca del Ro Santiago",0,1,3,23,4]
["rea Municipal de Proteccin HidrolgicaBosque El Nixticuil - San Esteban - El Diente",0,1,4,19,5]
["rea Municipal de Proteccin HidrolgicaBosque Los Colomos",0,1,4,18,5]
["rea Natural Protegida y Reserva EcolgicaSierra y Canon de Jimulco",0,0,4,11,4]

{"sheet":"TablaS3_#Spp_IUCNcat_ANPPriv","index":2,"n_rows":218,"n_cols":8,"rows_kept":218,"merged":[[0,0,0,7],[1,0,2,0],[1,1,1,6],[1,7,2,7]]}
["Número de especies por cateogría de riesgo de la IUCN en cada Área Natural Protegida privada"]
["Área Natural Protegida (priv)","Categoría de riesgo (IUCN)",{"$nulls":5},"Total de especies por ANP"]
[null,"CR","DD","EN","LC","NT","VU"]
["Agua Verde",0,0,0,2,0,0,{"$f":"B4+C4+D4+E4+F4+G4","v":2}]
["Arco Norte, Baha de San Quintn",0,0,1,3,1,0,5]
["Arco Sur, Baha de San Quintn",0,0,1,3,1,0,5]
["Area de Conservacin, Ejido Ascension",0,0,0,11,0,0,11]
["Betania",0,0,0,13,0,0,13]
["Candelaria",0,0,0,10,0,0,10]
["Cansaburro",0,0,0,14,0,0,14]
["Chapala, Baha de San Quintn",0,0,1,3,1,0,5]
["Comunidad Santiago Comaltepec",6,1,7,10,2,2,28]
["Cuauhtemoc",0,0,0,13,0,0,13]
["Ejido Concepcin  (RB Calakmul)",0,0,0,16,0,0,16]
["Ejido La Poza",0,0,0,2,0,0,2]
["Ejido Luis Echeverria Parcela 01",0,0,0,2,0,0,2]
["Ejido Luis Echeverria Parcela 02",0,0,0,2,0,0,2]
["Ejido Luis Echeverria Parcela 04",0,0,0,2,0,0,2]
["Ejido Luis Echeverria Parcela 05 A",0,0,0,2,0,0,2]
["Ejido Luis Echeverria Parcela 05 B",0,0,0,2,0,0,2]
["Ejido Luis Echeverria Parcela 06",0,0,0,2,0,0,2]
["Ejido Luis Echeverria Parcela 07",0,0,0,2,0,0,2]
["Ejido Luis Echeverria Parcela 08",0,0,0,2,0,0,2]
["Ejido Luis Echeverria Parcela 09",0,0,0,2,0,0,2]
["Ejido Luis Echeverria Parcela 10",0,0,0,2,0,0,2]
["Ejido Luis Echeverria Parcela 11",0,0,0,2,0,0,2]
["Ejido Luis Echeverria Parcela 12",0,0,0,2,0,0,2]
["Ejido Luis Echeverria Parcela 13",0,0,0,2,0,0,2]
["Ejido Luis Echeverria Parcela 14",0,0,0,2,0,0,2]
["Ejido Luis Echeverria Parcela 15",0,0,0,2,0,0,2]
["Ejido Luis Echeverria Parcela 36",0,0,0,2,0,0,2]
["Ejido Melchor Muzquiz (17 predios)",0,0,0,11,0,0,11]
["Ejido Postunich  (RB Calakmul)",0,0,0,16,0,0,16]
["Ejido Santo Domingo Centro",0,0,0,2,0,0,2]
["Ejido Santo Domingo Norte",0,0,0,2,0,0,2]
["Ejido Santo Domingo Sur",0,0,0,2,0,0,2]
["El Corzo San Rafael",0,0,0,14,1,0,15]
["El Coyote 1",0,0,0,14,0,0,14]
["El Coyote 2",0,0,0,14,0,0,14]
["El Coyote 3",0,0,0,14,0,0,14]
["El Huasteco",0,0,0,13,0,0,13]
["El Infante",0,0,0,11,0,0,11]
["El Llano (Habitat de Gorrin de Worthen)",0,0,0,9,0,0,9]
["El Melon",0,0,0,10,0,0,10]
["El Monumento 1",0,0,0,15,0,0,15]
["El Monumento 2",0,0,0,14,0,0,14]
["El Pandeo de los Pando",0,0,0,10,0,0,10]
["El Pedregn",0,0,0,13,0,0,13]
["El Pinar",0,0,0,10,0,0,10]
["El Portezuelo ???",0,0,0,2,0,0,2]
["El Rincn",0,0,0,10,0,0,10]
["El Rincn de Tejutln",0,0,1,11,2,2,16]
["El Sombrero",0,0,0,11,0,0,11]
["El Uno",0,0,0,11,0,0,11]
["Emiliano Zapata",0,0,0,13,0,0,13]
["Ensenada Caguama",0,0,0,2,0,0,2]
["Estacin Salado o El Salado (Palma del Lobo)",0,0,0,9,0,0,9]
["Felipe Carrillo Puerto II",0,0,0,15,1,0,16]
["Fracciones N.C.P.E. Francisco Villa (I)",0,0,1,12,0,0,13]
["Fracciones N.C.P.E. Francisco Villa (II)",0,0,1,13,0,0,14]
["Hacienda de Guadalupe",0,0,0,10,0,0,10]
["Hacienda de Santo Domingo",0,0,0,10,0,0,10]
["Huitepec (Predio Suburbano Granja San Francisco)",0,0,0,6,0,1,7]
["Ixtln de Jurez",7,1,2,10,2,2,24]
["Kampocolche",0,0,0,12,0,0,12]
["Kantemo",0,0,0,11,0,0,11]
["Kaxil Kiuic Reserva Biocultural Helen Moyers",0,0,0,9,0,0,9]
["Kenton Norte, Baha de San Quintn",0,0,1,3,1,0,5]
["Kenton Sur, Baha de San Quintn",0,0,1,3,1,0,5]
["La Anitas (Gallardo Fracc. Norte)",0,0,0,11,0,1,12]
["La Concha",0,0,0,10,0,0,10]
["La Cuesta",0,0,0,11,0,0,11]
["La Isla",0,0,0,13,0,0,13]
["La Joya sobrepuesto a Moxviquil",0,0,0,6,0,1,7]
["La Loma del Gorrin  (El Cercado)",0,0,0,9,0,0,9]
["La Merced del Potrero",0,0,0,13,0,0,13]
["La Noria de la Soledad",0,0,0,9,0,0,9]
["La Playa Parcela 7Z-1P1/1  (Sitio Ramsar - Sistema Lagunar Alvarado)",0,0,0,16,1,2,19]
["La Sierra",0,0,0,11,0,0,11]
["La Trinidad",0,0,0,10,0,0,10]
["Las Antonias I",0,0,0,11,0,0,11]
["Las Antonias II",0,0,0,10,0,0,10]
["Las Caadas",3,0,3,12,3,2,23]
["Las Palmitas",0,0,0,13,0,1,14]
["Las Pilas",0,0,0,11,0,0,11]
["Los Arrieros",0,0,0,9,0,0,9]
["Los Cuatro Gorriones (El Cercado)",0,0,1,17,0,0,18]
["Los Fresnos Lote 2",0,0,0,14,0,1,15]
["Los Fresnos Lote 3",0,0,0,13,0,1,14]
["Los Fresnos Lote 4",0,0,0,13,0,1,14]
["Los Fresnos Lote 5",0,0,0,13,0,1,14]
["Los Fresnos Lote 6",0,0,0,15,0,1,16]
["Los Pavos (Aros - Yaqui)",0,0,0,7,0,1,8]
["Lote 2 Las Lagartijas",0,0,0,11,0,0,11]
["Manantiales de Valerio",0,0,0,11,0,0,11]
["Moxviquil",0,0,0,6,0,1,7]
["Naranjal Poniente",0,0,0,13,0,0,13]
["Nuevo Israel",0,0,0,13,0,0,13]
["Nuevo Loria",0,0,0,13,0,0,13]
["Pacheco",0,0,0,11,0,0,11]
["Parcela 360",0,0,0,2,0,0,2]
["Parcela 53 - Manuel Edeza",0,0,0,12,0,0,12]
["Parcela 55 - Pablo Edeza Sanchez",0,0,0,12,0,0,12]
["Parcela 57 - Jesus Cazarez Ramirez",0,0,0,12,0,0,12]
["Parcela 59 - Gregorio Astorga Martinez",0,0,0,12,0,0,12]
["Parcela 63 - Luis Alfredo Hernndez Quintero",0,0,0,12,0,0,12]
["Parcela 65 - Luis Alfredo Hernndez Quintero",0,0,0,12,0,0,12]
["Parcela 70 - Jose Angel Aispuro Campos",0,0,0,12,0,0,12]
["Parcela 72 - Jorge Aispuro Campos",0,0,0,12,0,0,12]
["Parcela 74 - Jose Angel Aispuro Campos",0,0,0,12,0,0,12]
["Parcela 76 - Jorge Aispuro Campos",0,0,0,12,0,0,12]
["Parcela 83 - Jos Ramon Aguilar Aguirre",0,0,0,12,0,0,12]
["Parcela 84 - Fuctuoso Madueo Torres",0,0,0,12,0,0,12]
["Parcela 85 - Fuctuoso Madueo Torres",0,0,0,12,0,0,12]
["Parcela 87 - Felipe de Jesus Gasca Cabrera",0,0,0,12,0,0,12]
["Parcela 91 - Esteban Snchez Leon",0,0,0,12,0,0,12]
["Parcela 93 - Jos Antonio Padilla Canizales",0,0,0,12,0,0,12]
["Parcela 94 - Esteban Snchez",0,0,0,12,0,0,12]
["Parcela 98 - Teresa Canizales Ramirez",0,0,0,12,0,0,12]
["Parcela Ejido Reforma Agraria Integral (Corredor de Conservacin El Rosario San Quintn)",0,0,1,4,1,0,6]
["Pennsula de Lucenilla",0,0,0,15,0,0,15]
["Petcacab",0,0,0,13,0,0,13]
["Playa El Mechudo",0,0,0,2,0,0,2]
["Pozas Azules",0,0,0,8,0,0,8]
["Predios Pilares y el Reflejo",0,0,0,10,0,0,10]
["Rancho Cuchuma",0,0,1,7,1,1,10]
["Rancho Rodeo del Rey",0,0,1,4,0,0,5]
["Rancho San Rafael (Lote 3)",0,0,0,13,0,1,14]
["Rancho Santa Ana Tejutln",0,0,1,11,2,2,16]
["Reserva Comunal La Cojolita",0,1,0,15,1,0,17]
["Reserva Comunal Lacandonia schismatica",0,1,0,14,1,0,16]
["Reserva Ecolgica Comunitaria Zapatista Huitepec Ocotal",0,0,0,6,0,2,8]
["Reserva Ejidal Forestal Yo'Nit",0,0,0,14,0,0,14]
["Reserva El Carrizal",0,0,0,9,0,0,9]
["Reserva El Eden",0,0,0,14,1,0,15]
["Reserva Much' Kanan Ka'ach",0,0,0,13,0,0,13]
["Reserva Privada de Conservacin de Gorrin de Worthen y Perrito Llanero",0,0,0,9,0,0,9]
["S/D",0,0,0,11,0,0,11]
["S/D Predio ubicado al sur de Maderas del Carmen",0,0,0,10,0,0,10]
["Saban (III)",0,0,0,11,0,0,11]
["Saban (IV)",0,0,0,11,0,0,11]
["San Antonio Tuk (I)",0,0,0,12,0,0,12]
["San Antonio Tuk (II)",0,0,0,12,0,0,12]
["San Bernardino Fracc Norte Letra A",0,0,0,11,0,0,11]
["San Carlos",0,0,0,11,0,3,14]
["San Evaristo",0,0,0,2,0,0,2]
["San Jos",0,0,0,9,0,0,9]
["San Juan Bautista Atepec",3,0,4,9,2,2,20]
["San Mateo Ake",0,0,0,14,1,0,15]
["San Miguel del Puerto",0,1,0,13,0,0,14]
["San Pablo Macuiltianguis",2,0,4,10,2,2,20]
["San Pedro",0,0,0,13,0,0,13]
["San Sebastin o Tembabichi",0,0,0,2,0,0,2]
["Santa Catarina Ixtepeji (Zona ncleo)",3,0,2,8,1,1,15]
["Santa Mara Totomoxtla",1,0,2,9,2,0,14]
["Santo Domingo Parcela 10",0,0,0,2,0,0,2]
["Santo Domingo Parcela 14",0,0,0,2,0,0,2]
["Santo Domingo Parcela 3",0,0,0,2,0,0,2]
["Sector de Produccin Pecuario Nmero III del Ejido Casa de Janos",0,0,0,12,1,0,13]
["Servidumbre Ecolgica del Ejido Conquista Campesina Zonas de Conservacin",0,0,0,13,0,1,14]
["Servidumbre El Palmito Rancho La Liebre (Sierra Madre Occidental, Chara Pinta)",0,0,1,13,1,0,15]
["Servidumbre Estero Guadalupe 01",0,0,1,2,0,0,3]
["Servidumbre Estero Guadalupe 02",0,0,1,2,0,0,3]
["Servidumbre Estero Guadalupe 03",0,0,1,2,0,0,3]
["Servidumbre La nica 02",0,0,1,2,0,0,3]
["Sitio Arqueologico Yo'ok'op",0,0,0,12,0,0,12]
["Tabasco",0,0,0,11,0,0,11]
["Tabi",0,0,0,12,0,0,12]
["Tablaje Catastral 1755",0,0,0,14,0,0,14]
["Tablaje Catastral 1782",0,0,0,14,0,0,14]
["Tablaje Catastral 2102 (Vicente Daz)",0,0,0,14,0,0,14]
["Tepentu I Parcela 1Z1",0,0,0,2,0,0,2]
["Tepentu I Parcela 21ZZ",0,0,0,2,0,0,2]
["Tepentu I Parcela 23ZZ",0,0,0,2,0,0,2]
["Tepentu I Parcela 28ZZ",0,0,0,2,0,0,2]
["Tepentu I Parcela 2Z1",0,0,0,2,0,0,2]
["Tepentu I Parcela 30ZZ",0,0,0,2,0,0,2]
["Tepentu I Parcela 31ZZ",0,0,0,2,0,0,2]
["Tepentu I Parcela 34ZZ",0,0,0,2,0,0,2]
["Tepentu I Parcela 35ZZ",0,0,0,2,0,0,2]
["Tepentu I Parcela 3Z1",0,0,0,2,0,0,2]
["Tepentu I Parcela 4Z1",0,0,0,2,0,0,2]
["Tepentu I Parcela 5Z1",0,0,0,2,0,0,2]
["Tepentu II Parcela 109, Mesa de las Sayas",0,0,0,2,0,0,2]
["Tepentu II Parcela 111, Palmares al Oeste",0,0,0,2,0,0,2]
["Tepentu II Parcela 112, Palmares al Este",0,0,0,2,0,0,2]
["Tepentu III Parcela 19 Z 4 P 1/1",0,0,0,2,0,0,2]
["Tepentu III Parcela 20 Z 4 P 1/1",0,0,0,2,0,0,2]
["Tepentu III Parcela 22 Z 4 P 1/1",0,0,0,2,0,0,2]
["Tepentu III Parcela 24 Z 4 P 1/1",0,0,0,2,0,0,2]
["Tepentu III Parcela 92 Z 4 P 1/1",0,0,0,2,0,0,2]
["Tierras de Uso Comn",0,0,0,2,0,0,2]
["Tuzik",0,0,0,13,1,0,14]
["U'luum Chac Yuc (La Ruina)",0,0,0,15,0,0,15]
["U-Yumil C'eh",0,0,0,13,0,0,13]
["X Maben (I)",0,0,0,13,0,0,13]
["X Maben (III)",0,0,0,14,1,0,15]
["Xhazil (II)",0,0,0,13,0,0,13]
["Yavaros  Moroncarit (I)",0,0,0,10,0,0,10]
["Yavaros  Moroncarit (II)",0,0,0,10,0,0,10]
["Yavaros  Moroncarit (III)",0,0,0,10,0,0,10]
["Yavaros  Moroncarit (IV)",0,0,0,10,0,0,10]
["Yavaros  Moroncarit (IX)",0,0,0,10,0,0,10]
["Yavaros  Moroncarit (V)",0,0,0,10,0,0,10]
["Yavaros  Moroncarit (VI)",0,0,0,10,0,0,10]
["Yavaros  Moroncarit (VII)",0,0,0,10,0,0,10]
["Yavaros  Moroncarit (VIII)",0,0,0,10,0,0,10]
["Yavaros  Moroncarit (X)",0,0,0,10,0,0,10]
["Yavaros  Moroncarit (XI)",0,0,0,10,0,0,10]
["Yavaros  Moroncarit (XII)",0,0,0,10,0,0,10]
["Zetazora (I)",0,0,0,7,0,1,8]
["Zetazora (II)",0,0,0,7,0,1,8]
["Zetazora (III)",0,0,0,7,1,2,10]
["Zetazora (IV)",0,0,0,7,0,2,9]
["Zetazora (V)",0,0,0,7,0,1,8]
["Zetazora (VI)",0,0,0,7,1,2,10]
["Zona Ncleo Crescencio Morales Chincua-Campanario-Chivati",0,0,1,14,0,1,16]
["rea de Conservacin Los Pinos Caribe Caoba",0,0,0,17,0,0,17]

{"sheet":"TablaS4_#Spp_NOM059cat_ANPPriv","index":3,"n_rows":218,"n_cols":6,"rows_kept":218,"merged":[[0,0,0,5],[1,0,2,0],[1,1,1,3],[1,4,2,4],[1,5,2,5]]}
["Número de especies por cateogría de riesgo según la NOM-059 en cada Área Natural Protegida privada"]
["Área Natural Protegida (priv)","Categoría de riesgo según la NOM-059",null,null,"Total de especies por ANP","Número de especies que se encuentran en alguna categoría de riesgo según la NOM-059"]
[null,"P","A","Pr"]
["Agua Verde",0,0,0,2,{"$f":"(B4+C4+D4)","v":0}]
["Arco Norte, Baha de San Quintn",0,1,0,5,1]
["Arco Sur, Baha de San Quintn",0,1,0,5,1]
["Area de Conservacin, Ejido Ascension",0,0,2,11,2]
["Betania",0,0,3,13,3]
["Candelaria",0,0,2,10,2]
["Cansaburro",0,0,3,14,3]
["Chapala, Baha de San Quintn",0,1,0,5,1]
["Comunidad Santiago Comaltepec",0,3,3,28,6]
["Cuauhtemoc",0,0,3,13,3]
["Ejido Concepcin  (RB Calakmul)",0,0,4,16,4]
["Ejido La Poza",0,0,0,2,0]
["Ejido Luis Echeverria Parcela 01",0,0,0,2,0]
["Ejido Luis Echeverria Parcela 02",0,0,0,2,0]
["Ejido Luis Echeverria Parcela 04",0,0,0,2,0]
["Ejido Luis Echeverria Parcela 05 A",0,0,0,2,0]
["Ejido Luis Echeverria Parcela 05 B",0,0,0,2,0]
["Ejido Luis Echeverria Parcela 06",0,0,0,2,0]
["Ejido Luis Echeverria Parcela 07",0,0,0,2,0]
["Ejido Luis Echeverria Parcela 08",0,0,0,2,0]
["Ejido Luis Echeverria Parcela 09",0,0,0,2,0]
["Ejido Luis Echeverria Parcela 10",0,0,0,2,0]
["Ejido Luis Echeverria Parcela 11",0,0,0,2,0]
["Ejido Luis Echeverria Parcela 12",0,0,0,2,0]
["Ejido Luis Echeverria Parcela 13",0,0,0,2,0]
["Ejido Luis Echeverria Parcela 14",0,0,0,2,0]
["Ejido Luis Echeverria Parcela 15",0,0,0,2,0]
["Ejido Luis Echeverria Parcela 36",0,0,0,2,0]
["Ejido Melchor Muzquiz (17 predios)",0,0,3,11,3]
["Ejido Postunich  (RB Calakmul)",0,0,4,16,4]
["Ejido Santo Domingo Centro",0,0,0,2,0]
["Ejido Santo Domingo Norte",0,0,0,2,0]
["Ejido Santo Domingo Sur",0,0,0,2,0]
["El Corzo San Rafael",0,0,5,15,5]
["El Coyote 1",0,0,3,14,3]
["El Coyote 2",0,0,3,14,3]
["El Coyote 3",0,0,3,14,3]
["El Huasteco",0,0,3,13,3]
["El Infante",0,0,3,11,3]
["El Llano (Habitat de Gorrin de Worthen)",0,0,3,9,3]
["El Melon",0,0,3,10,3]
["El Monumento 1",0,0,3,15,3]
["El Monumento 2",0,0,3,14,3]
["El Pandeo de los Pando",0,0,3,10,3]
["El Pedregn",0,0,3,13,3]
["El Pinar",0,0,3,10,3]
["El Portezuelo ???",0,0,0,2,0]
["El Rincn",0,0,3,10,3]
["El Rincn de Tejutln",0,0,1,16,1]
["El Sombrero",0,0,3,11,3]
["El Uno",0,0,3,11,3]
["Emiliano Zapata",0,0,3,13,3]
["Ensenada Caguama",0,0,0,2,0]
["Estacin Salado o El Salado (Palma del Lobo)",0,0,3,9,3]
["Felipe Carrillo Puerto II",0,0,6,16,6]
["Fracciones N.C.P.E. Francisco Villa (I)",0,1,4,13,5]
["Fracciones N.C.P.E. Francisco Villa (II)",0,1,4,14,5]
["Hacienda de Guadalupe",0,0,3,10,3]
["Hacienda de Santo Domingo",0,0,3,10,3]
["Huitepec (Predio Suburbano Granja San Francisco)",0,0,2,7,2]
["Ixtln de Jurez",0,0,5,24,5]
["Kampocolche",0,0,2,12,2]
["Kantemo",0,0,2,11,2]
["Kaxil Kiuic Reserva Biocultural Helen Moyers",0,0,3,9,3]
["Kenton Norte, Baha de San Quintn",0,1,0,5,1]
["Kenton Sur, Baha de San Quintn",0,1,0,5,1]
["La Anitas (Gallardo Fracc. Norte)",0,1,1,12,2]
["La Concha",0,0,3,10,3]
["La Cuesta",0,0,3,11,3]
["La Isla",0,0,3,13,3]
["La Joya sobrepuesto a Moxviquil",0,0,2,7,2]
["La Loma del Gorrin  (El Cercado)",0,0,3,9,3]
["La Merced del Potrero",0,0,2,13,2]
["La Noria de la Soledad",0,0,3,9,3]
["La Playa Parcela 7Z-1P1/1  (Sitio Ramsar - Sistema Lagunar Alvarado)",0,0,4,19,4]
["La Sierra",0,0,3,11,3]
["La Trinidad",0,0,3,10,3]
["Las Antonias I",0,0,3,11,3]
["Las Antonias II",0,0,3,10,3]
["Las Caadas",0,4,6,23,10]
["Las Palmitas",0,1,3,14,4]
["Las Pilas",0,0,3,11,3]
["Los Arrieros",0,0,3,9,3]
["Los Cuatro Gorriones (El Cercado)",1,0,5,18,6]
["Los Fresnos Lote 2",0,1,3,15,4]
["Los Fresnos Lote 3",0,1,3,14,4]
["Los Fresnos Lote 4",0,1,3,14,4]
["Los Fresnos Lote 5",0,1,3,14,4]
["Los Fresnos Lote 6",0,1,3,16,4]
["Los Pavos (Aros - Yaqui)",0,0,2,8,2]
["Lote 2 Las Lagartijas",0,0,3,11,3]
["Manantiales de Valerio",0,0,3,11,3]
["Moxviquil",0,0,2,7,2]
["Naranjal Poniente",0,0,3,13,3]
["Nuevo Israel",0,0,3,13,3]
["Nuevo Loria",0,0,3,13,3]
["Pacheco",0,0,3,11,3]
["Parcela 360",0,0,0,2,0]
["Parcela 53 - Manuel Edeza",0,0,2,12,2]
["Parcela 55 - Pablo Edeza Sanchez",0,0,2,12,2]
["Parcela 57 - Jesus Cazarez Ramirez",0,0,2,12,2]
["Parcela 59 - Gregorio Astorga Martinez",0,0,2,12,2]
["Parcela 63 - Luis Alfredo Hernndez Quintero",0,0,2,12,2]
["Parcela 65 - Luis Alfredo Hernndez Quintero",0,0,2,12,2]
["Parcela 70 - Jose Angel Aispuro Campos",0,0,2,12,2]
["Parcela 72 - Jorge Aispuro Campos",0,0,2,12,2]
["Parcela 74 - Jose Angel Aispuro Campos",0,0,2,12,2]
["Parcela 76 - Jorge Aispuro Campos",0,0,2,12,2]
["Parcela 83 - Jos Ramon Aguilar Aguirre",0,0,2,12,2]
["Parcela 84 - Fuctuoso Madueo Torres",0,0,2,12,2]
["Parcela 85 - Fuctuoso Madueo Torres",0,0,2,12,2]
["Parcela 87 - Felipe de Jesus Gasca Cabrera",0,0,2,12,2]
["Parcela 91 - Esteban Snchez Leon",0,0,2,12,2]
["Parcela 93 - Jos Antonio Padilla Canizales",0,0,2,12,2]
["Parcela 94 - Esteban Snchez",0,0,2,12,2]
["Parcela 98 - Teresa Canizales Ramirez",0,0,2,12,2]
["Parcela Ejido Reforma Agraria Integral (Corredor de Conservacin El Rosario San Quintn)",0,1,0,6,1]
["Pennsula de Lucenilla",0,0,2,15,2]
["Petcacab",0,0,3,13,3]
["Playa El Mechudo",0,0,0,2,0]
["Pozas Azules",0,0,3,8,3]
["Predios Pilares y el Reflejo",0,0,3,10,3]
["Rancho Cuchuma",0,1,2,10,3]
["Rancho Rodeo del Rey",0,1,0,5,1]
["Rancho San Rafael (Lote 3)",0,1,3,14,4]
["Rancho Santa Ana Tejutln",0,0,1,16,1]
["Reserva Comunal La Cojolita",0,0,4,17,4]
["Reserva Comunal Lacandonia schismatica",0,0,4,16,4]
["Reserva Ecolgica Comunitaria Zapatista Huitepec Ocotal",0,0,2,8,2]
["Reserva Ejidal Forestal Yo'Nit",0,0,4,14,4]
["Reserva El Carrizal",0,0,2,9,2]
["Reserva El Eden",0,0,5,15,5]
["Reserva Much' Kanan Ka'ach",0,0,3,13,3]
["Reserva Privada de Conservacin de Gorrin de Worthen y Perrito Llanero",0,0,3,9,3]
["S/D",0,0,3,11,3]
["S/D Predio ubicado al sur de Maderas del Carmen",0,0,3,10,3]
["Saban (III)",0,0,2,11,2]
["Saban (IV)",0,0,2,11,2]
["San Antonio Tuk (I)",0,0,2,12,2]
["San Antonio Tuk (II)",0,0,2,12,2]
["San Bernardino Fracc Norte Letra A",0,0,1,11,1]
["San Carlos",0,0,4,14,4]
["San Evaristo",0,0,0,2,0]
["San Jos",0,0,3,9,3]
["San Juan Bautista Atepec",0,1,2,20,3]
["San Mateo Ake",0,0,5,15,5]
["San Miguel del Puerto",0,0,3,14,3]
["San Pablo Macuiltianguis",0,1,2,20,3]
["San Pedro",0,0,3,13,3]
["San Sebastin o Tembabichi",0,0,0,2,0]
["Santa Catarina Ixtepeji (Zona ncleo)",0,0,3,15,3]
["Santa Mara Totomoxtla",0,0,2,14,2]
["Santo Domingo Parcela 10",0,0,0,2,0]
["Santo Domingo Parcela 14",0,0,0,2,0]
["Santo Domingo Parcela 3",0,0,0,2,0]
["Sector de Produccin Pecuario Nmero III del Ejido Casa de Janos",0,0,4,13,4]
["Servidumbre Ecolgica del Ejido Conquista Campesina Zonas de Conservacin",0,0,2,14,2]
["Servidumbre El Palmito Rancho La Liebre (Sierra Madre Occidental, Chara Pinta)",0,0,2,15,2]
["Servidumbre Estero Guadalupe 01",0,1,0,3,1]
["Servidumbre Estero Guadalupe 02",0,1,0,3,1]
["Servidumbre Estero Guadalupe 03",0,1,0,3,1]
["Servidumbre La nica 02",0,1,0,3,1]
["Sitio Arqueologico Yo'ok'op",0,0,2,12,2]
["Tabasco",0,0,2,11,2]
["Tabi",0,0,2,12,2]
["Tablaje Catastral 1755",0,0,4,14,4]
["Tablaje Catastral 1782",0,0,4,14,4]
["Tablaje Catastral 2102 (Vicente Daz)",0,0,4,14,4]
["Tepentu I Parcela 1Z1",0,0,0,2,0]
["Tepentu I Parcela 21ZZ",0,0,0,2,0]
["Tepentu I Parcela 23ZZ",0,0,0,2,0]
["Tepentu I Parcela 28ZZ",0,0,0,2,0]
["Tepentu I Parcela 2Z1",0,0,0,2,0]
["Tepentu I Parcela 30ZZ",0,0,0,2,0]
["Tepentu I Parcela 31ZZ",0,0,0,2,0]
["Tepentu I Parcela 34ZZ",0,0,0,2,0]
["Tepentu I Parcela 35ZZ",0,0,0,2,0]
["Tepentu I Parcela 3Z1",0,0,0,2,0]
["Tepentu I Parcela 4Z1",0,0,0,2,0]
["Tepentu I Parcela 5Z1",0,0,0,2,0]
["Tepentu II Parcela 109, Mesa de las Sayas",0,0,0,2,0]
["Tepentu II Parcela 111, Palmares al Oeste",0,0,0,2,0]
["Tepentu II Parcela 112, Palmares al Este",0,0,0,2,0]
["Tepentu III Parcela 19 Z 4 P 1/1",0,0,0,2,0]
["Tepentu III Parcela 20 Z 4 P 1/1",0,0,0,2,0]
["Tepentu III Parcela 22 Z 4 P 1/1",0,0,0,2,0]
["Tepentu III Parcela 24 Z 4 P 1/1",0,0,0,2,0]
["Tepentu III Parcela 92 Z 4 P 1/1",0,0,0,2,0]
["Tierras de Uso Comn",0,0,0,2,0]
["Tuzik",0,0,4,14,4]
["U'luum Chac Yuc (La Ruina)",0,0,4,15,4]
["U-Yumil C'eh",0,0,3,13,3]
["X Maben (I)",0,0,3,13,3]
["X Maben (III)",0,0,4,15,4]
["Xhazil (II)",0,0,3,13,3]
["Yavaros  Moroncarit (I)",0,0,2,10,2]
["Yavaros  Moroncarit (II)",0,0,2,10,2]
["Yavaros  Moroncarit (III)",0,0,2,10,2]
["Yavaros  Moroncarit (IV)",0,0,2,10,2]
["Yavaros  Moroncarit (IX)",0,0,2,10,2]
["Yavaros  Moroncarit (V)",0,0,2,10,2]
["Yavaros  Moroncarit (VI)",0,0,2,10,2]
["Yavaros  Moroncarit (VII)",0,0,2,10,2]
["Yavaros  Moroncarit (VIII)",0,0,2,10,2]
["Yavaros  Moroncarit (X)",0,0,2,10,2]
["Yavaros  Moroncarit (XI)",0,0,2,10,2]
["Yavaros  Moroncarit (XII)",0,0,2,10,2]
["Zetazora (I)",0,0,2,8,2]
["Zetazora (II)",0,0,2,8,2]
["Zetazora (III)",0,1,2,10,3]
["Zetazora (IV)",0,1,2,9,3]
["Zetazora (V)",0,0,2,8,2]
["Zetazora (VI)",0,1,2,10,3]
["Zona Ncleo Crescencio Morales Chincua-Campanario-Chivati",0,0,0,16,0]
["rea de Conservacin Los Pinos Caribe Caoba",0,0,4,17,4]